Workbook

Sheet Intro
B2: Buttons for running a tournament:
B19: Buttons for practising:

Sheet Setup
A1: SCORING SETUP | D1: Group/Ind Swiss? | E1: Group | G1: Individual Tie Breaks | J1: Group Tie Breaks
G2: Player | J2: Group
A3: Points for… | D3: Name of First Bonus | E3: Bonus1 | G3: Points | H3: Order | J3: Points | K3: Order
A4: Win by at least 2 TD | B4: 1 | D4: Name of Second Bonus | E4: Bonus2 | G4: TD For | J4: TD For
A5: Win by 1 TD | B5: 1 | G5: TD Against | J5: TD Against
A6: Draw | B6: 0.5 | G6: TD Net | H6: 2 | J6: Net TDs | K6: 2
A7: Lose by 1 TD | B7: 0 | G7: Cas For | J7: Cas For
A8: Lose by at least 2 TD | B8: 0 | G8: Cas Against | J8: Cas Against
G9: Cas Net | H9: 3 | J9: Net Cas | K9: 3
A10: Bonus points for TD/Cas etc | D10: Test Individual Scoring System Here | G10: =Working!AG16 -> Bonus1 | J10: ="Group Total "&Working!AG16 -> Group Total Bonus1
A11: Points per TD | B11: 0 | D11: Your Score (required) | E11: 4 | G11: =Working!AG17 -> Bonus2 | J11: ="Group Total "&Working!AG17 -> Group Total Bonus2
A12: Max TD Bonus Pts | B12: 0 | D12: Opponent Score (required) | E12: 3 | G12: Wins | J12: Group Wins
A13: Points per Cas | B13: 0 | D13: Your Cas (optional) | E13: 3 | G13: Draws | J13: Groups Draws
A14: Max Cas Bonus Pts | B14: 0 | D14: ="Your "&Working!AG16&" (optional)" -> Your Bonus1 (optional) | E14: 1 | G14: Losses | J14: Group Losses
A15: =Working!AG16&" Max Bonus Pts" -> Bonus1 Max Bonus Pts | B15: 0 | D15: ="Your "&Working!AG17&" (optional)" -> Your Bonus2 (optional) | E15: 2 | G15: Opp Score | H15: 1 | J15: Individual Wins
A16: =Working!AG17&" Max Bonus Pts" -> Bonus2 Max Bonus Pts | B16: 0 | J16: Individual Draws
D17: Your Points | E17: =fctScore(E11,E12,E13,E14,E15) -> 1 | J17: Individual Losses
A18: Group Scoring Options | J18: Total Individual Points
A19: Points for a win | B19: 1 | J19: Opponent Score | K19: 1
A20: Points for a draw | B20: 0.5
A21: Points for a loss | B21: 0
A22: Points for a group win | B22: 1
A23: Points for a group draw | B23: 0.5
A24: Points for a group loss | B24: 0

Sheet Players
A1: Num | B1: Display Name | C1: NAF Name | D1: NAF Number (Random) | E1: Race | F1: Group | M1: Groups | O1: Team Size | P1: 8
A2: =IF(C2="","",MAX(A$1:A1)+1) -> 1 | B2: Driesfield | C2: Driesfield | D2: 6183 | E2: Slann | F2: Belgium | M2: Belgium
A3: =IF(C3="","",MAX(A$1:A2)+1) -> 2 | B3: Malodoror | C3: Malodoror | D3: 20793 | E3: Chaos Pact | F3: Belgium | M3: Denmark
A4: =IF(C4="","",MAX(A$1:A3)+1) -> 3 | B4: JJ | C4: JJ | D4: 10488 | E4: Underworld | F4: Belgium | M4: England
A5: =IF(C5="","",MAX(A$1:A4)+1) -> 4 | B5: Araznaroth | C5: Araznaroth | D5: 13199 | E5: Goblins | F5: Belgium | M5: Finland
A6: =IF(C6="","",MAX(A$1:A5)+1) -> 5 | B6: Woete | C6: Woete | D6: 12500 | E6: Chaos Dwarves | F6: Belgium | M6: France
A7: =IF(C7="","",MAX(A$1:A6)+1) -> 6 | B7: gninocker | C7: gninocker | D7: 17832 | E7: Vampires | F7: Belgium | M7: Germany
A8: =IF(C8="","",MAX(A$1:A7)+1) -> 7 | B8: Phoenix11 | C8: Phoenix11 | D8: 8402 | E8: Dark Elves | F8: Belgium | M8: Hungary
A9: =IF(C9="","",MAX(A$1:A8)+1) -> 8 | B9: Dekra1979 | C9: Dekra1979 | D9: 16259 | E9: High Elves | F9: Belgium | M9: Italy
A10: =IF(C10="","",MAX(A$1:A9)+1) -> 9 | B10: Tripleskull | C10: Tripleskull | D10: 9524 | E10: Chaos | F10: Denmark | M10: Norway
A11: =IF(C11="","",MAX(A$1:A10)+1) -> 10 | B11: MissSweden | C11: MissSweden | D11: 11498 | E11: Chaos | F11: Denmark | M11: Poland
A12: =IF(C12="","",MAX(A$1:A11)+1) -> 11 | B12: kfoged | C12: kfoged | D12: 10691 | E12: Slann | F12: Denmark | M12: Scotland
A13: =IF(C13="","",MAX(A$1:A12)+1) -> 12 | B13: Tank | C13: Tank | D13: 11501 | E13: Necromantic | F13: Denmark | M13: Spain
A14: =IF(C14="","",MAX(A$1:A13)+1) -> 13 | B14: Topper | C14: Topper | D14: 6363 | E14: Chaos | F14: Denmark | M14: Sweden
A15: =IF(C15="","",MAX(A$1:A14)+1) -> 14 | B15: SpecialOne | C15: SpecialOne | D15: 16742 | E15: Lizardmen | F15: Denmark | M15: Switzerland
A16: =IF(C16="","",MAX(A$1:A15)+1) -> 15 | B16: Jaqra | C16: Jaqra | D16: 19750 | E16: Skaven | F16: Denmark | M16: Viking
A17: =IF(C17="","",MAX(A$1:A16)+1) -> 16 | B17: Niebling | C17: Niebling | D17: 11499 | E17: Amazons | F17: Denmark | M17: Wales
A18: =IF(C18="","",MAX(A$1:A17)+1) -> 17 | B18: Lycos | C18: Lycos | D18: 2870 | E18: Ogres | F18: England
A19: =IF(C19="","",MAX(A$1:A18)+1) -> 18 | B19: PurpleGoo | C19: PurpleGoo | D19: 11777 | E19: Amazons | F19: England
A20: =IF(C20="","",MAX(A$1:A19)+1) -> 19 | B20: Geggster | C20: Geggster | D20: 70 | E20: Orc | F20: England
A21: =IF(C21="","",MAX(A$1:A20)+1) -> 20 | B21: Podfrey | C21: Podfrey | D21: 149 | E21: Slann | F21: England
A22: =IF(C22="","",MAX(A$1:A21)+1) -> 21 | B22: JimJimany | C22: JimJimany | D22: 12403 | E22: Goblins | F22: England
A23: =IF(C23="","",MAX(A$1:A22)+1) -> 22 | B23: Joemanji | C23: Joemanji | D23: 3312 | E23: Chaos | F23: England
A24: =IF(C24="","",MAX(A$1:A23)+1) -> 23 | B24: Mubo | C24: Mubo | D24: 13409 | E24: Amazons | F24: England
A25: =IF(C25="","",MAX(A$1:A24)+1) -> 24 | B25: Wilzif | C25: Wilzif | D25: 8901 | E25: Underworld | F25: England
A26: =IF(B26="","",MAX(A$1:A25)+1) -> 25 | B26: MacWitt | C26: MacWitt | D26: 19932 | E26: Elves | F26: Finland
A27: =IF(B27="","",MAX(A$1:A26)+1) -> 26 | B27: Harza | C27: Harza | D27: 20060 | E27: Dwarves | F27: Finland
A28: =IF(B28="","",MAX(A$1:A27)+1) -> 27 | B28: jopotzuki | C28: jopotzuki | D28: 20783 | E28: Nurgle's Rotters | F28: Finland
A29: =IF(B29="","",MAX(A$1:A28)+1) -> 28 | B29: edheim | C29: edheim | D29: 20760 | E29: Chaos | F29: Finland
A30: =IF(B30="","",MAX(A$1:A29)+1) -> 29 | B30: BeerBeer | C30: BeerBeer | D30: 18245 | E30: Necromantic | F30: Finland
A31: =IF(B31="","",MAX(A$1:A30)+1) -> 30 | B31: J-Ho | C31: J-Ho | D31: 19106 | E31: Nurgle's Rotters | F31: Finland
A32: =IF(B32="","",MAX(A$1:A31)+1) -> 31 | B32: ratogre | C32: ratogre | D32: 22007 | E32: Necromantic | F32: Finland
A33: =IF(B33="","",MAX(A$1:A32)+1) -> 32 | B33: valkohukka | C33: valkohukka | D33: 18772 | E33: Slann | F33: Finland
A34: =IF(B34="","",MAX(A$1:A33)+1) -> 33 | B34: BiBi | C34: BiBi | D34: 11491 | E34: Undead | F34: France
A35: =IF(B35="","",MAX(A$1:A34)+1) -> 34 | B35: Bouzzy | C35: Bouzzy | D35: 15733 | E35: Chaos Pact | F35: France
A36: =IF(B36="","",MAX(A$1:A35)+1) -> 35 | B36: BudWiser | C36: BudWiser | D36: 12987 | E36: Necromantic | F36: France
A37: =IF(B37="","",MAX(A$1:A36)+1) -> 36 | B37: Gros Nain | C37: Gros Nain | D37: 14524 | E37: Norse | F37: France
A38: =IF(B38="","",MAX(A$1:A37)+1) -> 37 | B38: Harti | C38: Harti | D38: 13583 | E38: Skaven | F38: France
A39: =IF(B39="","",MAX(A$1:A38)+1) -> 38 | B39: Justicium | C39: Justicium | D39: 12319 | E39: Wood Elves | F39: France
A40: =IF(B40="","",MAX(A$1:A39)+1) -> 39 | B40: Matt le fou | C40: Matt le fou | D40: 13561 | E40: Undead | F40: France
A41: =IF(B41="","",MAX(A$1:A40)+1) -> 40 | B41: Simon_ACP | C41: Simon_ACP | D41: 17603 | E41: Humans | F41: France
A42: =IF(B42="","",MAX(A$1:A41)+1) -> 41 | B42: Arioso | C42: Arioso | D42: 18738 | E42: Orc | F42: Germany
A43: =IF(B43="","",MAX(A$1:A42)+1) -> 42 | B43: RoterSternHochdahl | C43: RoterSternHochdahl | D43: 18704 | E43: Chaos Dwarves | F43: Germany
A44: =IF(B44="","",MAX(A$1:A43)+1) -> 43 | B44: Muadib | C44: Muadib | D44: 2800 | E44: Khemri | F44: Germany
A45: =IF(B45="","",MAX(A$1:A44)+1) -> 44 | B45: Candlejack | C45: Candlejack | D45: 5844 | E45: Undead | F45: Germany
A46: =IF(B46="","",MAX(A$1:A45)+1) -> 45 | B46: Gaunab | C46: Gaunab | D46: 2150 | E46: Orc | F46: Germany
A47: =IF(B47="","",MAX(A$1:A46)+1) -> 46 | B47: Prince | C47: Prince | D47: 341 | E47: Lizardmen | F47: Germany
A48: =IF(B48="","",MAX(A$1:A47)+1) -> 47 | B48: DocMaxx | C48: DocMaxx | D48: 16347 | E48: Chaos Pact | F48: Germany
A49: =IF(B49="","",MAX(A$1:A48)+1) -> 48 | B49: Jonny_Kanone | C49: Jonny_Kanone | D49: 9621 | E49: Chaos Dwarves | F49: Germany
A50: =IF(B50="","",MAX(A$1:A49)+1) -> 49 | B50: BlackOrc | C50: BlackOrc | D50: 6233 | E50: Chaos Pact | F50: Hungary
A51: =IF(B51="","",MAX(A$1:A50)+1) -> 50 | B51: Itzla | C51: Itzla | D51: 9758 | E51: Chaos Dwarves | F51: Hungary
A52: =IF(B52="","",MAX(A$1:A51)+1) -> 51 | B52: Wolio | C52: Wolio | D52: 20061 | E52: Dark Elves | F52: Hungary
A53: =IF(B53="","",MAX(A$1:A52)+1) -> 52 | B53: noraal | C53: noraal | D53: 21798 | E53: Underworld | F53: Hungary
A54: =IF(B54="","",MAX(A$1:A53)+1) -> 53 | B54: Favi | C54: Favi | D54: 20062 | E54: Skaven | F54: Hungary
A55: =IF(B55="","",MAX(A$1:A54)+1) -> 54 | B55: cz | C55: cz | D55: 21604 | E55: Underworld | F55: Hungary
A56: =IF(B56="","",MAX(A$1:A55)+1) -> 55 | B56: swifty | C56: swifty | D56: 20309 | E56: Khemri | F56: Hungary
A57: =IF(B57="","",MAX(A$1:A56)+1) -> 56 | B57: Alex05 | C57: Alex05 | D57: 22352 | E57: Orc | F57: Hungary
A58: =IF(B58="","",MAX(A$1:A57)+1) -> 57 | B58: Beppe | C58: Beppe | D58: 3564 | E58: Orc | F58: Italy
A59: =IF(B59="","",MAX(A$1:A58)+1) -> 58 | B59: Dirold | C59: Dirold | D59: 5900 | E59: Amazons | F59: Italy
A60: =IF(B60="","",MAX(A$1:A59)+1) -> 59 | B60: Farina | C60: Farina | D60: 3533 | E60: Chaos Dwarves | F60: Italy
A61: =IF(B61="","",MAX(A$1:A60)+1) -> 60 | B61: Kaltenland | C61: Kaltenland | D61: 11924 | E61: Chaos Pact | F61: Italy
A62: =IF(B62="","",MAX(A$1:A61)+1) -> 61 | B62: Liam | C62: Liam | D62: 5906 | E62: Wood Elves | F62: Italy
A63: =IF(B63="","",MAX(A$1:A62)+1) -> 62 | B63: Matte8 | C63: Matte8 | D63: 13785 | E63: Khemri | F63: Italy
A64: =IF(B64="","",MAX(A$1:A63)+1) -> 63 | B64: Spartako | C64: Spartako | D64: 13417 | E64: Skaven | F64: Italy
A65: =IF(B65="","",MAX(A$1:A64)+1) -> 64 | B65: Verrinho | C65: Verrinho | D65: 16930 | E65: Nurgle's Rotters | F65: Italy
A66: =IF(B66="","",MAX(A$1:A65)+1) -> 65 | B66: zulu | C66: zulu | D66: 16829 | E66: Goblins | F66: Norway
A67: =IF(B67="","",MAX(A$1:A66)+1) -> 66 | B67: Endalos | C67: Endalos | D67: 17242 | E67: Wood Elves | F67: Norway
A68: =IF(B68="","",MAX(A$1:A67)+1) -> 67 | B68: The_Ref | C68: The_Ref | D68: 9441 | E68: Amazons | F68: Norway
A69: =IF(B69="","",MAX(A$1:A68)+1) -> 68 | B69: straume | C69: straume | D69: 20685 | E69: High Elves | F69: Norway
A70: =IF(B70="","",MAX(A$1:A69)+1) -> 69 | B70: bothun | C70: bothun | D70: 20953 | E70: Wood Elves | F70: Norway
A71: =IF(B71="","",MAX(A$1:A70)+1) -> 70 | B71: FrankPedersen | C71: FrankPedersen | D71: 20899 | E71: Chaos | F71: Norway
A72: =IF(B72="","",MAX(A$1:A71)+1) -> 71 | B72: mynock | C72: mynock | D72: 20775 | E72: Goblins | F72: Norway
A73: =IF(B73="","",MAX(A$1:A72)+1) -> 72 | B73: GreatWhiteHope | C73: GreatWhiteHope | D73: 20881 | E73: Lizardmen | F73: Norway
A74: =IF(B74="","",MAX(A$1:A73)+1) -> 73 | B74: Mewash | C74: Mewash | D74: 21627 | E74: Vampires | F74: Poland
A75: =IF(B75="","",MAX(A$1:A74)+1) -> 74 | B75: Reszka | C75: Reszka | D75: 21573 | E75: Dark Elves | F75: Poland
A76: =IF(B76="","",MAX(A$1:A75)+1) -> 75 | B76: Leonek | C76: Leonek | D76: 22375 | E76: Vampires | F76: Poland
A77: =IF(B77="","",MAX(A$1:A76)+1) -> 76 | B77: Domingo | C77: Domingo | D77: 20280 | E77: Ogres | F77: Poland
A78: =IF(B78="","",MAX(A$1:A77)+1) -> 77 | B78: Slimaq | C78: Slimaq | D78: 21957 | E78: Dark Elves | F78: Poland
A79: =IF(B79="","",MAX(A$1:A78)+1) -> 78 | B79: Warrior1980 | C79: Warrior1980 | D79: 22376 | E79: Norse | F79: Poland
A80: =IF(B80="","",MAX(A$1:A79)+1) -> 79 | B80: Juniooor7 | C80: Juniooor7 | D80: 22455 | E80: Norse | F80: Poland
A81: =IF(B81="","",MAX(A$1:A80)+1) -> 80 | B81: Shawass | C81: Shawass | D81: 18416 | E81: Chaos Pact | F81: Poland
A82: =IF(B82="","",MAX(A$1:A81)+1) -> 81 | B82: DonShula | C82: DonShula | D82: 14445 | E82: Skaven | F82: Scotland
A83: =IF(B83="","",MAX(A$1:A82)+1) -> 82 | B83: Garrick | C83: Garrick | D83: 18506 | E83: Chaos Dwarves | F83: Scotland
A84: =IF(B84="","",MAX(A$1:A83)+1) -> 83 | B84: Purdindas | C84: Purdindas | D84: 10831 | E84: Undead | F84: Scotland
A85: =IF(B85="","",MAX(A$1:A84)+1) -> 84 | B85: JamesEs | C85: JamesEs | D85: 17875 | E85: Vampires | F85: Scotland
A86: =IF(B86="","",MAX(A$1:A85)+1) -> 85 | B86: sann0638 | C86: sann0638 | D86: 8866 | E86: Humans | F86: Scotland
A87: =IF(B87="","",MAX(A$1:A86)+1) -> 86 | B87: Valen | C87: Valen | D87: 1538 | E87: Nurgle's Rotters | F87: Scotland
A88: =IF(B88="","",MAX(A$1:A87)+1) -> 87 | B88: Loki | C88: Loki | D88: 371 | E88: Underworld | F88: Scotland
A89: =IF(B89="","",MAX(A$1:A88)+1) -> 88 | B89: HumptyTrump | C89: HumptyTrump | D89: 20360 | E89: Skaven | F89: Scotland
A90: =IF(B90="","",MAX(A$1:A89)+1) -> 89 | B90: Dark Duke | C90: Dark Duke | D90: 2925 | E90: Chaos Dwarves | F90: Spain
A91: =IF(B91="","",MAX(A$1:A90)+1) -> 90 | B91: Obeliz | C91: Obeliz | D91: 2519 | E91: Chaos | F91: Spain
A92: =IF(B92="","",MAX(A$1:A91)+1) -> 91 | B92: Joanet | C92: Joanet | D92: 7690 | E92: Khemri | F92: Spain
A93: =IF(B93="","",MAX(A$1:A92)+1) -> 92 | B93: Duke_Luthor_Von_Hawkfire | C93: Duke_Luthor_Von_Hawkfire | D93: 11793 | E93: Vampires | F93: Spain
A94: =IF(B94="","",MAX(A$1:A93)+1) -> 93 | B94: Barry | C94: Barry | D94: 3290 | E94: High Elves | F94: Spain
A95: =IF(B95="","",MAX(A$1:A94)+1) -> 94 | B95: Idroj | C95: Idroj | D95: 20930 | E95: Dwarves | F95: Spain
A96: =IF(B96="","",MAX(A$1:A95)+1) -> 95 | B96: Malasnoticias | C96: Malasnoticias | D96: 17068 | E96: Chaos Pact | F96: Spain
A97: =IF(B97="","",MAX(A$1:A96)+1) -> 96 | B97: Tactel | C97: Tactel | D97: 20218 | E97: High Elves | F97: Spain
A98: =IF(B98="","",MAX(A$1:A97)+1) -> 97 | B98: Melisqus | C98: Melisqus | D98: 16238 | E98: Orc | F98: Sweden
A99: =IF(B99="","",MAX(A$1:A98)+1) -> 98 | B99: Inforthepain | C99: Inforthepain | D99: 19483 | E99: Wood Elves | F99: Sweden
A100: =IF(B100="","",MAX(A$1:A99)+1) -> 99 | B100: Pidpad | C100: Pidpad | D100: 20957 | E100: High Elves | F100: Sweden
A101: =IF(B101="","",MAX(A$1:A100)+1) -> 100 | B101: Skuld | C101: Skuld | D101: 20481 | E101: Dark Elves | F101: Sweden
A102: =IF(B102="","",MAX(A$1:A101)+1) -> 101 | B102: JohnnyD | C102: JohnnyD | D102: 18171 | E102: Halflings | F102: Sweden
A103: =IF(B103="","",MAX(A$1:A102)+1) -> 102 | B103: Skoberget | C103: Skoberget | D103: 19448 | E103: Slann | F103: Sweden
A104: =IF(B104="","",MAX(A$1:A103)+1) -> 103 | B104: Dragons | C104: Dragons | D104: 19003 | E104: Orc | F104: Sweden
A105: =IF(B105="","",MAX(A$1:A104)+1) -> 104 | B105: Pellevin | C105: Pellevin | D105: 19271 | E105: Elves | F105: Sweden
A106: =IF(B106="","",MAX(A$1:A105)+1) -> 105 | B106: Strider84 | C106: Strider84 | D106: 14113 | E106: Goblins | F106: Switzerland
A107: =IF(B107="","",MAX(A$1:A106)+1) -> 106 | B107: Jokaero | C107: Jokaero | D107: 2785 | E107: Vampires | F107: Switzerland
A108: =IF(B108="","",MAX(A$1:A107)+1) -> 107 | B108: Phifoe | C108: Phifoe | D108: 16959 | E108: Goblins | F108: Switzerland
A109: =IF(B109="","",MAX(A$1:A108)+1) -> 108 | B109: Goss | C109: Goss | D109: 18266 | E109: Humans | F109: Switzerland
A110: =IF(B110="","",MAX(A$1:A109)+1) -> 109 | B110: Madmatt13 | C110: Madmatt13 | D110: 19790 | E110: Norse | F110: Switzerland
A111: =IF(B111="","",MAX(A$1:A110)+1) -> 110 | B111: Elrik | C111: Elrik | D111: 19344 | E111: High Elves | F111: Switzerland
A112: =IF(B112="","",MAX(A$1:A111)+1) -> 111 | B112: sigu70 | C112: sigu70 | D112: 17003 | E112: Wood Elves | F112: Switzerland
A113: =IF(B113="","",MAX(A$1:A112)+1) -> 112 | B113: Macabeo | C113: Macabeo | D113: 18608 | E113: Chaos Pact | F113: Switzerland
A114: =IF(B114="","",MAX(A$1:A113)+1) -> 113 | B114: Balder | C114: Balder | D114: 17725 | E114: Dark Elves | F114: Viking
A115: =IF(B115="","",MAX(A$1:A114)+1) -> 114 | B115: Corwin | C115: Corwin | D115: 17878 | E115: Chaos Pact | F115: Viking
A116: =IF(B116="","",MAX(A$1:A115)+1) -> 115 | B116: Faccko | C116: Faccko | D116: 17893 | E116: Dwarves | F116: Viking
A117: =IF(B117="","",MAX(A$1:A116)+1) -> 116 | B117: Mufflo | C117: Mufflo | D117: 15048 | E117: Ogres | F117: Viking
A118: =IF(B118="","",MAX(A$1:A117)+1) -> 117 | B118: brocCooli | C118: brocCooli | D118: 12552 | E118: Slann | F118: Viking
A119: =IF(B119="","",MAX(A$1:A118)+1) -> 118 | B119: Duckwing | C119: Duckwing | D119: 16278 | E119: Vampires | F119: Viking
A120: =IF(B120="","",MAX(A$1:A119)+1) -> 119 | B120: Bernuz | C120: Bernuz | D120: 19542 | E120: Lizardmen | F120: Viking
A121: =IF(B121="","",MAX(A$1:A120)+1) -> 120 | B121: Purrelito | C121: Purrelito | D121: 15323 | E121: Skaven | F121: Viking
A122: =IF(B122="","",MAX(A$1:A121)+1) -> 121 | B122: nonumber | C122: nonumber | D122: 8923 | E122: Skaven | F122: Wales
A123: =IF(B123="","",MAX(A$1:A122)+1) -> 122 | B123: 20Phoenix | C123: 20Phoenix | D123: 19395 | E123: Chaos Dwarves | F123: Wales
A124: =IF(B124="","",MAX(A$1:A123)+1) -> 123 | B124: SFisher91 | C124: SFisher91 | D124: 16057 | E124: Chaos Pact | F124: Wales
A125: =IF(B125="","",MAX(A$1:A124)+1) -> 124 | B125: Dionysian | C125: Dionysian | D125: 19480 | E125: Dark Elves | F125: Wales
A126: =IF(B126="","",MAX(A$1:A125)+1) -> 125 | B126: Northernknight | C126: Northernknight | D126: 7569 | E126: Chaos | F126: Wales
A127: =IF(B127="","",MAX(A$1:A126)+1) -> 126 | B127: MadeofWelsh | C127: MadeofWelsh | D127: 12184 | E127: Lizardmen | F127: Wales
A128: =IF(B128="","",MAX(A$1:A127)+1) -> 127 | B128: Ploppy_McPloppy | C128: Ploppy_McPloppy | D128: 16417 | E128: Slann | F128: Wales
A129: =IF(B129="","",MAX(A$1:A128)+1) -> 128 | B129: andydavo | C129: andydavo | D129: 19726 | E129: Ogres | F129: Wales
A130: =IF(B130="","",MAX(A$1:A129)+1) -> 
A131: =IF(B131="","",MAX(A$1:A130)+1) -> 
A132: =IF(B132="","",MAX(A$1:A131)+1) -> 
A133: =IF(B133="","",MAX(A$1:A132)+1) -> 
A134: =IF(B134="","",MAX(A$1:A133)+1) -> 
A135: =IF(B135="","",MAX(A$1:A134)+1) -> 
A136: =IF(B136="","",MAX(A$1:A135)+1) -> 
A137: =IF(B137="","",MAX(A$1:A136)+1) -> 
A138: =IF(B138="","",MAX(A$1:A137)+1) -> 
A139: =IF(B139="","",MAX(A$1:A138)+1) -> 
A140: =IF(B140="","",MAX(A$1:A139)+1) -> 
A141: =IF(B141="","",MAX(A$1:A140)+1) -> 
A142: =IF(B142="","",MAX(A$1:A141)+1) -> 
A143: =IF(B143="","",MAX(A$1:A142)+1) -> 
A144: =IF(B144="","",MAX(A$1:A143)+1) -> 
A145: =IF(B145="","",MAX(A$1:A144)+1) -> 
A146: =IF(B146="","",MAX(A$1:A145)+1) -> 
A147: =IF(B147="","",MAX(A$1:A146)+1) -> 
A148: =IF(B148="","",MAX(A$1:A147)+1) -> 
A149: =IF(B149="","",MAX(A$1:A148)+1) -> 
A150: =IF(B150="","",MAX(A$1:A149)+1) -> 
A151: =IF(B151="","",MAX(A$1:A150)+1) -> 
A152: =IF(B152="","",MAX(A$1:A151)+1) -> 
A153: =IF(B153="","",MAX(A$1:A152)+1) -> 
A154: =IF(B154="","",MAX(A$1:A153)+1) -> 
A155: =IF(B155="","",MAX(A$1:A154)+1) -> 
A156: =IF(B156="","",MAX(A$1:A155)+1) -> 
A157: =IF(B157="","",MAX(A$1:A156)+1) -> 
A158: =IF(B158="","",MAX(A$1:A157)+1) -> 
A159: =IF(B159="","",MAX(A$1:A158)+1) -> 
A160: =IF(B160="","",MAX(A$1:A159)+1) -> 

Sheet Table

Sheet GroupFixtures

Sheet GroupMatrix

Sheet GroupTable

Sheet Matrix
CW1: Skuld | CX1: JohnnyD | CY1: Skoberget | CZ1: Dragons | DA1: Pellevin | DB1: Strider84 | DC1: Jokaero | DD1: Phifoe | DE1: Goss | DF1: Madmatt13 | DG1: Elrik | DH1: sigu70 | DI1: Macabeo | DJ1: Balder | DK1: Corwin | DL1: Faccko | DM1: Mufflo | DN1: brocCooli | DO1: Duckwing | DP1: Bernuz | DQ1: Purrelito | DR1: nonumber | DS1: 20Phoenix | DT1: SFisher91 | DU1: Dionysian | DV1: Northernknight | DW1: MadeofWelsh | DX1: Ploppy_McPloppy | DY1: andydavo
CW2: R1, 1 - 0 | CX2: R5, 1 - 0 | CY2: R1, 1 - 0 | CZ2: R3, 0 - 1 | DB2: R4, 1 - 0 | DC2: R6, 1 - 0 | DE2: R1, 0.5 - 0.5 | DF2: R4, 4 - 18 | DG2: R2, 0 - 1 | DI2: R4, 1 - 0 | DK2: R5, 0 - 1 | DM2: R1, 1 - 0 | DN2: R1, 1 - 0 | DO2: R3, 0 - 1 | DP2: R3, 1 - 0 | DQ2: R3, 23 - 5 | DS2: R3, 0 - 1 | DX2: R2, 0.5 - 0.5 | DY2: R5, 1 - 0
CX3: R1, 0.5 - 0.5 | CZ3: R4, 0.5 - 0.5 | DA3: R5, 0.5 - 0.5 | DB3: R2, 0 - 1 | DC3: R1, 1 - 0 | DF3: R4, 0.5 - 0.5 | DH3: R3, 1 - 0 | DJ3: R1, 0.5 - 0.5 | DL3: R3, 0.5 - 0.5 | DQ3: R1, 1 - 0 | DR3: R3, 0 - 1 | DS3: R5, 1 - 0 | DV3: R4, 5 - 22 | DW3: R6, 0 - 1
CW4: R1, 0.5 - 0.5 | CX4: R4, 0.5 - 0.5 | CY4: R1, 0 - 1 | CZ4: R1, 0.5 - 0.5 | DB4: R3, 0 - 1 | DD4: R4, 0 - 1 | DE4: R4, 0 - 1 | DF4: R5, 3 - 20 | DG4: R4, 1 - 0 | DJ4: R5, 0 - 1 | DK4: R5, 0.5 - 0.5 | DL4: R6, 1 - 0 | DM4: R1, 1 - 0 | DN4: R3, 1 - 0 | DO4: R2, 0 - 1 | DP4: R1, 0.5 - 0.5 | DQ4: R2, 0 - 1 | DT4: R2, 0 - 1 | DU4: R2, 22 - 6 | DV4: R5, 0.5 - 0.5 | DW4: R3, 0 - 1 | DX4: R4, 0 - 1
CW5: R4, 0 - 1 | CX5: R5, 0.5 - 0.5 | CY5: R1, 0 - 1 | CZ5: R1, 1 - 0 | DA5: R1, 0.5 - 0.5 | DB5: R4, 0.5 - 0.5 | DC5: R4, 0.5 - 0.5 | DD5: R3, 0.5 - 0.5 | DI5: R1, 0 - 1 | DJ5: R3, 0.5 - 0.5 | DK5: R2, 0.5 - 0.5 | DL5: R1, 1 - 0 | DM5: R1, 1 - 0 | DN5: R4, 0.5 - 0.5 | DP5: R2, 1 - 0 | DQ5: R1, 0.5 - 0.5 | DR5: R3, 0.5 - 0.5 | DT5: R3, 21 - 4 | DU5: R2, 0 - 1 | DV5: R6, 0.5 - 0.5 | DX5: R3, 0.5 - 0.5 | DY5: R6, 19 - 3
CY6: R5, 0 - 1 | CZ6: R2, 1 - 0 | DA6: R1, 0.5 - 0.5 | DB6: R2, 0.5 - 0.5 | DE6: R4, 1 - 0 | DF6: R5, 1 - 0 | DG6: R4, 0 - 1 | DH6: R1, 0 - 1 | DJ6: R3, 0.5 - 0.5 | DK6: R1, 0 - 1 | DL6: R1, 0.5 - 0.5 | DO6: R5, 0 - 1 | DP6: R1, 0.5 - 0.5 | DT6: R3, 1 - 0 | DW6: R2, 1 - 0 | DY6: R2, 0 - 1
CW7: R5, 1 - 0 | CX7: R1, 0 - 1 | CY7: R5, 0.5 - 0.5 | DC7: R4, 0.5 - 0.5 | DE7: R4, 0.5 - 0.5 | DG7: R1, 0.5 - 0.5 | DH7: R3, 1 - 0 | DI7: R3, 1 - 0 | DJ7: R6, 0.5 - 0.5 | DK7: R3, 0.5 - 0.5 | DL7: R2, 1 - 0 | DM7: R2, 1 - 0 | DN7: R3, 0.5 - 0.5 | DO7: R1, 1 - 0 | DP7: R3, 1 - 0 | DR7: R5, 0.5 - 0.5 | DU7: R3, 1 - 0 | DV7: R2, 1 - 0
CW8: R1, 1 - 0 | CY8: R4, 0 - 1 | CZ8: R1, 1 - 0 | DB8: R1, 1 - 0 | DD8: R4, 0.5 - 0.5 | DF8: R3, 0 - 1 | DH8: R4, 1 - 0 | DJ8: R2, 1 - 0 | DL8: R1, 0 - 1 | DM8: R5, 1 - 0 | DN8: R1, 1 - 0 | DO8: R2, 0 - 1 | DQ8: R1, 0.5 - 0.5 | DV8: R3, 0.5 - 0.5 | DW8: R5, 0.5 - 0.5 | DY8: R2, 0 - 1
CW9: R1, 0 - 1 | CX9: R1, 1 - 0 | CY9: R1, 0.5 - 0.5 | CZ9: R5, 0 - 1 | DC9: R3, 0 - 1 | DD9: R3, 2 - 18 | DF9: R1, 1 - 0 | DH9: R4, 0 - 1 | DI9: R4, 0 - 1 | DJ9: R1, 0 - 1 | DK9: R1, 0 - 1 | DM9: R3, 0 - 1 | DO9: R3, 0.5 - 0.5 | DS9: R2, 1 - 0 | DT9: R4, 19 - 4 | DU9: R5, 0.5 - 0.5 | DV9: R2, 0.5 - 0.5 | DY9: R3, 1 - 0
CW10: R4, 1 - 0 | CY10: R1, 0.5 - 0.5 | CZ10: R1, 0.5 - 0.5 | DA10: R1, 1 - 0 | DB10: R2, 1 - 0 | DC10: R2, 0.5 - 0.5 | DD10: R2, 1 - 0 | DE10: R2, 1 - 0 | DF10: R1, 0.5 - 0.5 | DG10: R1, 0.5 - 0.5 | DH10: R3, 1 - 0 | DI10: R5, 0 - 1 | DK10: R1, 1 - 0 | DL10: R2, 1 - 0 | DM10: R6, 0.5 - 0.5 | DP10: R1, 0.5 - 0.5 | DQ10: R2, 0 - 1 | DR10: R1, 0 - 1 | DS10: R1, 0.5 - 0.5 | DT10: R1, 0.5 - 0.5 | DV10: R3, 1 - 0 | DX10: R5, 0.5 - 0.5 | DY10: R1, 1 - 0
CX11: R1, 1 - 0 | CY11: R1, 1 - 0 | CZ11: R4, 1 - 0 | DA11: R1, 0 - 1 | DB11: R2, 1 - 0 | DC11: R1, 0.5 - 0.5 | DE11: R1, 0 - 1 | DF11: R3, 1 - 0 | DH11: R2, 0.5 - 0.5 | DI11: R2, 0.5 - 0.5 | DJ11: R1, 0.5 - 0.5 | DK11: R2, 1 - 0 | DL11: R6, 1 - 0 | DN11: R1, 0.5 - 0.5 | DP11: R2, 1 - 0 | DS11: R1, 1 - 0 | DT11: R5, 0 - 1 | DV11: R1, 0.5 - 0.5 | DW11: R4, 1 - 0 | DX11: R1, 0.5 - 0.5 | DY11: R1, 0.5 - 0.5
CW12: R1, 1 - 0 | CZ12: R1, 0.5 - 0.5 | DA12: R3, 0 - 1 | DB12: R3, 0 - 1 | DD12: R1, 1 - 0 | DF12: R2, 0.5 - 0.5 | DG12: R2, 1 - 0 | DH12: R1, 1 - 0 | DJ12: R4, 20 - 3 | DK12: R2, 1 - 0 | DM12: R2, 1 - 0 | DO12: R1, 0.5 - 0.5 | DR12: R1, 0.5 - 0.5 | DT12: R3, 1 - 0 | DU12: R1, 1 - 0 | DW12: R1, 0 - 1
CW13: R4, 0.5 - 0.5 | CZ13: R1, 0.5 - 0.5 | DA13: R1, 0.5 - 0.5 | DB13: R1, 0 - 1 | DC13: R2, 0.5 - 0.5 | DD13: R4, 0 - 1 | DE13: R1, 0.5 - 0.5 | DF13: R2, 0 - 1 | DG13: R3, 0.5 - 0.5 | DH13: R2, 0.5 - 0.5 | DJ13: R2, 1 - 0 | DM13: R1, 1 - 0 | DP13: R4, 0 - 1 | DQ13: R2, 0 - 1 | DR13: R3, 0.5 - 0.5 | DU13: R4, 0 - 1 | DV13: R5, 0 - 1 | DW13: R1, 1 - 0 | DX13: R5, 0 - 1 | DY13: R1, 1 - 0
CX14: R2, 0 - 1 | CZ14: R1, 0.5 - 0.5 | DA14: R4, 0 - 1 | DC14: R1, 0 - 1 | DE14: R2, 1 - 0 | DI14: R2, 1 - 0 | DJ14: R2, 6 - 22 | DK14: R6, 0.5 - 0.5 | DN14: R2, 0.5 - 0.5 | DO14: R1, 1 - 0 | DP14: R2, 0 - 1 | DQ14: R1, 1 - 0 | DR14: R5, 0.5 - 0.5 | DT14: R1, 0.5 - 0.5 | DU14: R3, 1 - 0 | DV14: R6, 20 - 3 | DW14: R1, 0 - 1 | DX14: R1, 0 - 1
CW15: R1, 0 - 1 | CX15: R1, 0.5 - 0.5 | CY15: R1, 1 - 0 | DB15: R2, 0 - 1 | DC15: R2, 1 - 0 | DE15: R3, 1 - 0 | DF15: R1, 0 - 1 | DG15: R1, 0.5 - 0.5 | DI15: R2, 0 - 1 | DJ15: R1, 0.5 - 0.5 | DL15: R1, 1 - 0 | DN15: R2, 0.5 - 0.5 | DO15: R2, 0 - 1 | DP15: R6, 0 - 1 | DR15: R1, 0.5 - 0.5 | DT15: R5, 0.5 - 0.5 | DV15: R1, 0.5 - 0.5 | DW15: R3, 1 - 0 | DX15: R1, 0.5 - 0.5
CW16: R1, 0.5 - 0.5 | CX16: R4, 0 - 1 | CY16: R1, 0.5 - 0.5 | DA16: R2, 0 - 1 | DB16: R1, 0 - 1 | DC16: R2, 19 - 3 | DD16: R2, 0 - 1 | DE16: R2, 1 - 0 | DF16: R2, 1 - 0 | DG16: R2, 1 - 0 | DH16: R1, 1 - 0 | DI16: R3, 0 - 1 | DL16: R1, 0 - 1 | DM16: R2, 0 - 1 | DN16: R1, 1 - 0 | DO16: R2, 1 - 0 | DR16: R1, 0.5 - 0.5 | DS16: R1, 0.5 - 0.5 | DT16: R1, 1 - 0 | DU16: R1, 0.5 - 0.5 | DX16: R3, 0.5 - 0.5
CW17: R1, 1 - 0 | CX17: R1, 0.5 - 0.5 | CY17: R4, 0.5 - 0.5 | DA17: R1, 0 - 1 | DB17: R3, 0.5 - 0.5 | DD17: R2, 0.5 - 0.5 | DI17: R1, 0 - 1 | DJ17: R2, 0.5 - 0.5 | DK17: R1, 1 - 0 | DL17: R2, 0.5 - 0.5 | DP17: R1, 0 - 1 | DS17: R1, 1 - 0 | DU17: R1, 1 - 0 | DV17: R1, 1 - 0 | DW17: R5, 0.5 - 0.5
CW18: R2, 0 - 1 | CY18: R1, 0.5 - 0.5 | CZ18: R1, 1 - 0 | DA18: R2, 0.5 - 0.5 | DB18: R3, 0 - 1 | DC18: R4, 1 - 0 | DD18: R6, 0.5 - 0.5 | DE18: R1, 0 - 1 | DF18: R4, 1 - 0 | DH18: R1, 1 - 0 | DI18: R2, 0.5 - 0.5 | DL18: R1, 0 - 1 | DM18: R1, 0 - 1 | DN18: R3, 1 - 0 | DO18: R1, 0.5 - 0.5 | DQ18: R2, 0 - 1 | DU18: R1, 0 - 1 | DX18: R1, 0.5 - 0.5 | DY18: R2, 12 - 10
CW19: R2, 0 - 1 | CX19: R2, 1 - 0 | DA19: R3, 0.5 - 0.5 | DC19: R3, 0.5 - 0.5 | DE19: R5, 0 - 1 | DF19: R4, 0.5 - 0.5 | DG19: R2, 0 - 1 | DI19: R3, 1 - 0 | DK19: R4, 0 - 1 | DM19: R1, 1 - 0 | DN19: R1, 0.5 - 0.5 | DO19: R2, 0 - 1 | DP19: R1, 1 - 0 | DQ19: R1, 0 - 1 | DR19: R1, 0.5 - 0.5 | DT19: R1, 0 - 1 | DU19: R5, 0 - 1 | DV19: R1, 1 - 0
CW20: R2, 0.5 - 0.5 | CX20: R3, 0.5 - 0.5 | CZ20: R5, 1 - 0 | DD20: R2, 0.5 - 0.5 | DE20: R1, 0 - 1 | DF20: R2, 0 - 1 | DG20: R4, 0.5 - 0.5 | DH20: R5, 1 - 0 | DI20: R3, 1 - 0 | DJ20: R3, 1 - 0 | DK20: R1, 0.5 - 0.5 | DL20: R2, 0.5 - 0.5 | DM20: R4, 0.5 - 0.5 | DN20: R1, 0.5 - 0.5 | DT20: R1, 0.5 - 0.5 | DV20: R1, 0 - 1 | DW20: R2, 1 - 0 | DX20: R3, 1 - 0
CW21: R5, 1 - 0 | CX21: R1, 0 - 1 | CY21: R3, 1 - 0 | CZ21: R2, 1 - 0 | DA21: R4, 1 - 0 | DC21: R1, 0.5 - 0.5 | DD21: R4, 0.5 - 0.5 | DF21: R5, 1 - 0 | DG21: R3, 0.5 - 0.5 | DH21: R2, 1 - 0 | DI21: R1, 1 - 0 | DK21: R2, 1 - 0 | DL21: R2, 0 - 1 | DN21: R1, 0.5 - 0.5 | DO21: R1, 1 - 0 | DP21: R1, 0.5 - 0.5 | DS21: R2, 0 - 1 | DU21: R6, 1 - 0 | DV21: R1, 0.5 - 0.5 | DW21: R1, 1 - 0 | DY21: R1, 0.5 - 0.5
CW22: R3, 22 - 4 | CX22: R2, 1 - 0 | CY22: R2, 0 - 1 | DA22: R1, 0.5 - 0.5 | DB22: R2, 1 - 0 | DC22: R1, 0 - 1 | DF22: R3, 0 - 1 | DH22: R1, 0 - 1 | DI22: R6, 0.5 - 0.5 | DJ22: R1, 1 - 0 | DK22: R1, 1 - 0 | DL22: R5, 0.5 - 0.5 | DM22: R3, 0.5 - 0.5 | DP22: R4, 1 - 0 | DQ22: R1, 0 - 1 | DR22: R1, 0.5 - 0.5 | DU22: R1, 0 - 1 | DY22: R1, 1 - 0
CW23: R4, 1 - 0 | CX23: R1, 0 - 1 | CY23: R3, 0.5 - 0.5 | CZ23: R2, 1 - 0 | DA23: R5, 0 - 1 | DB23: R1, 0.5 - 0.5 | DD23: R5, 0 - 1 | DE23: R2, 0 - 1 | DF23: R6, 0 - 1 | DH23: R3, 0 - 1 | DJ23: R1, 0.5 - 0.5 | DK23: R1, 1 - 0 | DM23: R1, 0.5 - 0.5 | DN23: R2, 0 - 1 | DO23: R1, 0.5 - 0.5 | DP23: R3, 1 - 0 | DQ23: R4, 0.5 - 0.5 | DR23: R1, 1 - 0 | DU23: R5, 0.5 - 0.5 | DV23: R2, 0.5 - 0.5 | DX23: R1, 1 - 0
CZ24: R3, 0.5 - 0.5 | DA24: R3, 0.5 - 0.5 | DB24: R6, 1 - 0 | DD24: R2, 0 - 1 | DE24: R3, 0 - 1 | DH24: R4, 0.5 - 0.5 | DI24: R1, 1 - 0 | DJ24: R1, 0.5 - 0.5 | DK24: R3, 1 - 0 | DL24: R1, 0.5 - 0.5 | DM24: R1, 1 - 0 | DO24: R1, 0.5 - 0.5 | DP24: R2, 0 - 1 | DR24: R2, 0.5 - 0.5 | DS24: R1, 0 - 1 | DU24: R2, 0 - 1 | DW24: R1, 1 - 0 | DX24: R5, 0 - 1 | DY24: R1, 0.5 - 0.5
CW25: R3, 0 - 1 | CX25: R4, 0.5 - 0.5 | CY25: R5, 0 - 1 | CZ25: R3, 0.5 - 0.5 | DA25: R2, 0 - 1 | DB25: R4, 0 - 1 | DC25: R2, 0.5 - 0.5 | DD25: R3, 0 - 1 | DG25: R5, 1 - 0 | DH25: R4, 0 - 1 | DJ25: R1, 1 - 0 | DL25: R3, 1 - 0 | DM25: R2, 1 - 0 | DN25: R2, 0 - 1 | DP25: R1, 0.5 - 0.5 | DQ25: R1, 0 - 1 | DS25: R1, 0.5 - 0.5 | DT25: R1, 0 - 1 | DX25: R2, 0.5 - 0.5
CX26: R2, 0 - 1 | DC26: R3, 0 - 1 | DD26: R1, 1 - 0 | DE26: R2, 1 - 0 | DJ26: R1, 1 - 0 | DL26: R5, 1 - 0 | DM26: R3, 0.5 - 0.5 | DO26: R2, 1 - 0 | DQ26: R3, 0 - 1 | DR26: R2, 0 - 1 | DT26: R6, 0 - 1 | DU26: R2, 0 - 1 | DV26: R1, 1 - 0 | DX26: R3, 0.5 - 0.5 | DY26: R2, 0.5 - 0.5
CW27: R4, 0.5 - 0.5 | CY27: R2, 1 - 0 | CZ27: R4, 1 - 0 | DA27: R1, 0 - 1 | DC27: R1, 0.5 - 0.5 | DD27: R5, 1 - 0 | DF27: R2, 1 - 0 | DH27: R2, 1 - 0 | DI27: R3, 0.5 - 0.5 | DJ27: R1, 21 - 4 | DK27: R3, 0.5 - 0.5 | DN27: R1, 1 - 0 | DO27: R5, 0 - 1 | DP27: R5, 1 - 0 | DQ27: R2, 0 - 1 | DR27: R1, 0.5 - 0.5 | DS27: R2, 0.5 - 0.5 | DT27: R5, 23 - 7 | DU27: R1, 0 - 1 | DX27: R6, 0.5 - 0.5 | DY27: R2, 0.5 - 0.5
CZ28: R1, 0 - 1 | DA28: R2, 1 - 0 | DB28: R2, 0 - 1 | DC28: R3, 0 - 1 | DE28: R1, 0 - 1 | DF28: R2, 0 - 1 | DI28: R1, 0 - 1 | DJ28: R5, 0 - 1 | DN28: R2, 1 - 0 | DO28: R3, 0.5 - 0.5 | DP28: R5, 0 - 1 | DQ28: R1, 0 - 1 | DR28: R6, 0.5 - 0.5 | DS28: R1, 0 - 1 | DT28: R3, 0.5 - 0.5 | DU28: R2, 0.5 - 0.5 | DV28: R1, 0.5 - 0.5 | DY28: R2, 0 - 1
CZ29: R2, 1 - 0 | DC29: R1, 1 - 0 | DE29: R3, 0.5 - 0.5 | DH29: R1, 0 - 1 | DI29: R2, 0 - 1 | DJ29: R2, 0 - 1 | DN29: R3, 0 - 1 | DO29: R5, 0 - 1 | DP29: R1, 0.5 - 0.5 | DR29: R1, 0.5 - 0.5 | DS29: R6, 0.5 - 0.5 | DU29: R3, 0.5 - 0.5 | DW29: R2, 0 - 1 | DY29: R1, 0 - 1
CW30: R2, 0 - 1 | CY30: R1, 0.5 - 0.5 | DA30: R4, 1 - 0 | DB30: R3, 0.5 - 0.5 | DC30: R2, 0 - 1 | DD30: R2, 0.5 - 0.5 | DE30: R1, 0.5 - 0.5 | DF30: R1, 0.5 - 0.5 | DG30: R3, 0.5 - 0.5 | DH30: R2, 0.5 - 0.5 | DJ30: R3, 1 - 0 | DK30: R5, 0 - 1 | DL30: R1, 0.5 - 0.5 | DP30: R2, 0 - 1 | DQ30: R5, 0.5 - 0.5 | DR30: R3, 0.5 - 0.5 | DS30: R1, 1 - 0 | DT30: R2, 0.5 - 0.5 | DU30: R1, 0.5 - 0.5 | DV30: R6, 1 - 0 | DX30: R1, 1 - 0
CX31: R1, 1 - 0 | CY31: R4, 0.5 - 0.5 | CZ31: R3, 1 - 20 | DA31: R4, 0 - 1 | DB31: R1, 1 - 0 | DD31: R2, 1 - 0 | DG31: R2, 0.5 - 0.5 | DH31: R3, 1 - 0 | DI31: R1, 0 - 1 | DJ31: R3, 1 - 0 | DL31: R3, 1 - 0 | DM31: R2, 0.5 - 0.5 | DN31: R5, 1 - 0 | DO31: R1, 1 - 0 | DP31: R1, 6 - 20 | DQ31: R4, 1 - 0 | DR31: R4, 20 - 4 | DS31: R2, 0.5 - 0.5 | DT31: R1, 0 - 1 | DU31: R6, 0.5 - 0.5 | DV31: R2, 1 - 0 | DW31: R2, 0.5 - 0.5 | DX31: R2, 0.5 - 0.5 | DY31: R3, 1 - 0
CW32: R4, 1 - 0 | CY32: R4, 0 - 1 | DA32: R2, 1 - 0 | DD32: R3, 1 - 0 | DE32: R2, 3 - 18 | DF32: R2, 1 - 0 | DG32: R1, 1 - 0 | DH32: R3, 0 - 1 | DK32: R2, 0.5 - 0.5 | DM32: R3, 0.5 - 0.5 | DQ32: R3, 0 - 1 | DR32: R2, 0 - 1 | DT32: R2, 0.5 - 0.5 | DW32: R1, 0 - 1 | DX32: R2, 0.5 - 0.5 | DY32: R6, 0 - 1
CX33: R4, 0 - 1 | CY33: R2, 1 - 0 | DB33: R1, 0.5 - 0.5 | DD33: R2, 0.5 - 0.5 | DE33: R5, 1 - 0 | DF33: R3, 0.5 - 0.5 | DG33: R1, 0.5 - 0.5 | DH33: R6, 20 - 5 | DL33: R2, 0 - 1 | DM33: R1, 0 - 1 | DN33: R5, 0 - 1 | DP33: R3, 0 - 1 | DR33: R1, 0 - 1 | DU33: R2, 0.5 - 0.5 | DV33: R2, 0 - 1 | DW33: R6, 0.5 - 0.5 | DX33: R6, 0.5 - 0.5 | DY33: R1, 0.5 - 0.5
CX34: R1, 0 - 1 | DA34: R5, 0 - 1 | DB34: R6, 1 - 0 | DD34: R1, 9 - 9 | DE34: R5, 0 - 1 | DF34: R2, 0.5 - 0.5 | DG34: R1, 0.5 - 0.5 | DJ34: R2, 0.5 - 0.5 | DM34: R4, 0 - 1 | DN34: R4, 0.5 - 0.5 | DP34: R1, 1 - 0 | DQ34: R3, 1 - 0 | DR34: R4, 0.5 - 0.5 | DS34: R1, 0 - 1 | DT34: R4, 0.5 - 0.5 | DU34: R1, 1 - 0 | DX34: R5, 0.5 - 0.5 | DY34: R3, 0.5 - 0.5
CX35: R5, 1 - 0 | CY35: R4, 1 - 0 | DB35: R1, 1 - 0 | DC35: R6, 0.5 - 0.5 | DD35: R1, 0 - 1 | DE35: R2, 1 - 0 | DI35: R1, 0.5 - 0.5 | DJ35: R5, 0 - 1 | DK35: R3, 1 - 0 | DM35: R1, 0 - 1 | DO35: R4, 0.5 - 0.5 | DP35: R2, 0.5 - 0.5 | DQ35: R4, 0.5 - 0.5 | DR35: R1, 0 - 1 | DS35: R4, 3 - 18 | DT35: R1, 0 - 1 | DU35: R6, 1 - 0 | DW35: R4, 0 - 1 | DX35: R1, 1 - 0 | DY35: R5, 0.5 - 0.5
CX36: R4, 1 - 0 | CY36: R1, 0.5 - 0.5 | DB36: R1, 0 - 1 | DC36: R1, 0.5 - 0.5 | DD36: R6, 0.5 - 0.5 | DG36: R6, 0.5 - 0.5 | DH36: R1, 1 - 0 | DI36: R2, 0.5 - 0.5 | DJ36: R3, 0 - 1 | DK36: R4, 0 - 1 | DL36: R6, 0 - 1 | DM36: R1, 0.5 - 0.5 | DN36: R1, 1 - 0 | DO36: R4, 0 - 1 | DP36: R3, 0.5 - 0.5 | DQ36: R5, 0 - 1 | DR36: R2, 9 - 11 | DS36: R1, 0.5 - 0.5 | DT36: R1, 0 - 1 | DU36: R5, 0.5 - 0.5 | DW36: R6, 0.5 - 0.5 | DX36: R4, 0 - 1
CW37: R1, 0 - 1 | CY37: R5, 0.5 - 0.5 | DA37: R6, 20 - 5 | DB37: R1, 1 - 0 | DC37: R2, 0 - 1 | DE37: R1, 23 - 3 | DF37: R1, 1 - 0 | DG37: R5, 0 - 1 | DI37: R1, 0.5 - 0.5 | DJ37: R1, 0 - 1 | DK37: R2, 22 - 3 | DL37: R1, 0 - 1 | DM37: R4, 1 - 0 | DN37: R3, 1 - 0 | DO37: R5, 0 - 1 | DP37: R4, 20 - 4 | DQ37: R2, 0.5 - 0.5 | DR37: R1, 0 - 1 | DS37: R1, 1 - 0 | DU37: R1, 1 - 0 | DV37: R5, 0.5 - 0.5 | DW37: R2, 19 - 5 | DY37: R1, 1 - 0
CZ38: R5, 0 - 1 | DA38: R1, 0 - 1 | DB38: R5, 0 - 1 | DD38: R2, 0 - 1 | DE38: R6, 0 - 1 | DF38: R1, 1 - 0 | DG38: R1, 0 - 1 | DJ38: R1, 1 - 0 | DK38: R2, 0 - 1 | DL38: R3, 0.5 - 0.5 | DP38: R4, 0.5 - 0.5 | DQ38: R1, 0 - 1 | DS38: R4, 0 - 1 | DT38: R5, 0.5 - 0.5 | DU38: R2, 12 - 11 | DV38: R3, 1 - 0 | DW38: R1, 0.5 - 0.5 | DX38: R1, 0 - 1
CY39: R5, 18 - 2 | CZ39: R1, 0.5 - 0.5 | DD39: R4, 19 - 2 | DE39: R1, 0.5 - 0.5 | DF39: R6, 0 - 1 | DH39: R2, 0.5 - 0.5 | DJ39: R4, 1 - 0 | DK39: R1, 1 - 0 | DL39: R5, 0 - 1 | DM39: R3, 0 - 1 | DN39: R4, 1 - 0 | DO39: R2, 1 - 0 | DR39: R5, 0 - 1 | DS39: R2, 23 - 5 | DT39: R1, 1 - 0 | DV39: R6, 1 - 0 | DW39: R1, 0 - 1 | DX39: R3, 1 - 0 | DY39: R1, 0.5 - 0.5
CW40: R5, 0.5 - 0.5 | DB40: R2, 0.5 - 0.5 | DC40: R5, 1 - 0 | DD40: R1, 1 - 0 | DF40: R1, 9 - 10 | DH40: R4, 0 - 1 | DI40: R6, 0.5 - 0.5 | DK40: R4, 0.5 - 0.5 | DL40: R1, 0 - 1 | DM40: R5, 0.5 - 0.5 | DP40: R3, 1 - 0 | DR40: R1, 1 - 0 | DS40: R5, 1 - 0 | DT40: R3, 0 - 1 | DU40: R4, 0.5 - 0.5 | DW40: R1, 0 - 1 | DX40: R1, 1 - 0
CX41: R1, 1 - 0 | CY41: R4, 0 - 1 | DC41: R6, 0.5 - 0.5 | DD41: R5, 1 - 0 | DG41: R2, 0 - 1 | DH41: R1, 0 - 1 | DI41: R1, 0 - 1 | DK41: R5, 1 - 0 | DL41: R4, 0.5 - 0.5 | DM41: R2, 0 - 1 | DO41: R1, 0.5 - 0.5 | DP41: R4, 0.5 - 0.5 | DR41: R1, 0 - 1 | DT41: R3, 1 - 0 | DU41: R1, 0 - 1 | DV41: R1, 0 - 1 | DW41: R5, 0.5 - 0.5 | DY41: R4, 0 - 1
CW42: R1, 0.5 - 0.5 | CZ42: R6, 1 - 0 | DB42: R2, 20 - 3 | DF42: R1, 1 - 0 | DG42: R1, 0 - 1 | DH42: R1, 0 - 1 | DI42: R1, 0.5 - 0.5 | DJ42: R5, 0 - 1 | DL42: R3, 0 - 1 | DM42: R6, 0 - 1 | DN42: R4, 0.5 - 0.5 | DR42: R2, 1 - 0 | DT42: R1, 1 - 0 | DU42: R6, 0 - 1 | DV42: R2, 0.5 - 0.5 | DW42: R1, 0.5 - 0.5 | DX42: R3, 1 - 0
CW43: R4, 0 - 1 | CX43: R3, 0.5 - 0.5 | CZ43: R5, 1 - 0 | DA43: R1, 0 - 1 | DB43: R1, 0.5 - 0.5 | DC43: R1, 1 - 0 | DD43: R1, 0 - 1 | DH43: R1, 0 - 1 | DJ43: R3, 1 - 0 | DN43: R2, 0.5 - 0.5 | DO43: R6, 0.5 - 0.5 | DP43: R5, 0 - 1 | DQ43: R2, 0.5 - 0.5 | DR43: R2, 1 - 0 | DS43: R1, 1 - 0 | DT43: R3, 1 - 0 | DU43: R1, 0 - 1 | DV43: R4, 1 - 0 | DW43: R2, 1 - 0 | DX43: R2, 0.5 - 0.5 | DY43: R5, 0 - 1
CW44: R5, 1 - 0 | CX44: R6, 0 - 1 | CZ44: R6, 0.5 - 0.5 | DA44: R4, 0 - 1 | DF44: R1, 0 - 1 | DG44: R1, 0.5 - 0.5 | DI44: R1, 0.5 - 0.5 | DJ44: R6, 0 - 1 | DL44: R5, 1 - 0 | DM44: R2, 1 - 0 | DP44: R3, 0 - 1 | DQ44: R2, 1 - 0 | DS44: R2, 1 - 0 | DU44: R4, 0 - 1 | DV44: R3, 0.5 - 0.5 | DW44: R1, 0.5 - 0.5 | DX44: R6, 0.5 - 0.5 | DY44: R2, 0 - 1
CY45: R4, 0.5 - 0.5 | DA45: R6, 0.5 - 0.5 | DB45: R3, 0.5 - 0.5 | DD45: R1, 1 - 0 | DE45: R1, 1 - 0 | DG45: R1, 1 - 0 | DJ45: R6, 1 - 0 | DK45: R3, 0 - 1 | DL45: R4, 0.5 - 0.5 | DM45: R3, 0 - 1 | DN45: R5, 1 - 0 | DO45: R2, 1 - 0 | DR45: R6, 1 - 0 | DS45: R4, 1 - 0 | DT45: R2, 1 - 0 | DU45: R3, 0 - 1 | DV45: R1, 0.5 - 0.5 | DW45: R2, 1 - 0 | DX45: R1, 1 - 0
CW46: R6, 0.5 - 0.5 | CX46: R6, 0.5 - 0.5 | CZ46: R4, 1 - 0 | DA46: R2, 0.5 - 0.5 | DB46: R1, 0 - 1 | DC46: R1, 0 - 1 | DE46: R4, 0 - 1 | DI46: R1, 1 - 0 | DK46: R2, 1 - 0 | DO46: R3, 1 - 0 | DP46: R3, 0.5 - 0.5 | DQ46: R6, 0.5 - 0.5 | DR46: R1, 0 - 1 | DT46: R2, 1 - 0 | DU46: R4, 0 - 1 | DW46: R4, 1 - 0 | DX46: R2, 0 - 1
CW47: R6, 0.5 - 0.5 | CY47: R5, 0.5 - 0.5 | CZ47: R1, 0.5 - 0.5 | DE47: R1, 1 - 0 | DF47: R1, 0 - 1 | DG47: R2, 0.5 - 0.5 | DH47: R1, 0 - 1 | DJ47: R2, 0.5 - 0.5 | DK47: R6, 0 - 1 | DN47: R3, 0.5 - 0.5 | DP47: R2, 1 - 0 | DQ47: R5, 0.5 - 0.5 | DR47: R6, 0 - 1 | DT47: R2, 1 - 0 | DU47: R2, 0 - 1 | DW47: R3, 0.5 - 0.5 | DX47: R4, 1 - 0 | DY47: R1, 1 - 0
CW48: R3, 0 - 1 | DB48: R1, 0.5 - 0.5 | DC48: R1, 1 - 0 | DE48: R5, 1 - 0 | DG48: R2, 0 - 1 | DI48: R1, 0 - 1 | DJ48: R2, 1 - 0 | DM48: R5, 0.5 - 0.5 | DN48: R6, 1 - 0 | DO48: R4, 0 - 1 | DP48: R2, 0 - 1 | DQ48: R3, 0.5 - 0.5 | DS48: R2, 0.5 - 0.5 | DT48: R4, 0 - 1 | DY48: R2, 1 - 0
CX49: R4, 1 - 0 | CY49: R6, 1 - 0 | DD49: R1, 1 - 0 | DE49: R1, 1 - 0 | DG49: R1, 1 - 0 | DH49: R1, 0.5 - 0.5 | DJ49: R4, 0 - 1 | DK49: R3, 0 - 1 | DL49: R6, 0 - 1 | DM49: R2, 0 - 1 | DO49: R3, 1 - 0 | DR49: R2, 0.5 - 0.5 | DT49: R2, 1 - 0 | DU49: R1, 0 - 1 | DV49: R2, 1 - 0 | DW49: R6, 0 - 1 | DX49: R4, 0 - 1 | DY49: R4, 0.5 - 0.5
CY50: R3, 0 - 1 | CZ50: R2, 1 - 0 | DA50: R3, 0.5 - 0.5 | DB50: R1, 0 - 1 | DC50: R2, 0.5 - 0.5 | DD50: R3, 1 - 0 | DF50: R5, 0 - 1 | DG50: R1, 0 - 1 | DI50: R1, 0.5 - 0.5 | DJ50: R6, 0.5 - 0.5 | DK50: R1, 1 - 0 | DN50: R6, 10 - 11 | DO50: R2, 1 - 0 | DR50: R1, 1 - 0 | DT50: R4, 1 - 0 | DU50: R4, 0 - 1 | DX50: R1, 0 - 1 | DY50: R3, 1 - 0
CX51: R1, 0 - 1 | CY51: R1, 0.5 - 0.5 | DB51: R1, 1 - 0 | DE51: R1, 1 - 0 | DG51: R1, 0.5 - 0.5 | DH51: R1, 0 - 1 | DJ51: R2, 0.5 - 0.5 | DM51: R6, 0 - 1 | DO51: R6, 1 - 0 | DQ51: R5, 2 - 20 | DS51: R4, 1 - 0 | DU51: R1, 1 - 0 | DV51: R2, 0 - 1 | DW51: R6, 1 - 0 | DX51: R4, 1 - 0
CW52: R1, 0.5 - 0.5 | CY52: R2, 0 - 1 | DB52: R1, 0.5 - 0.5 | DD52: R1, 1 - 0 | DE52: R1, 0.5 - 0.5 | DF52: R1, 1 - 0 | DI52: R3, 0 - 1 | DJ52: R2, 22 - 3 | DL52: R1, 0 - 1 | DM52: R6, 1 - 0 | DR52: R4, 0.5 - 0.5 | DT52: R6, 0.5 - 0.5 | DU52: R4, 1 - 0 | DW52: R1, 0.5 - 0.5 | DX52: R1, 1 - 0
CW53: R3, 1 - 0 | CX53: R1, 1 - 0 | CY53: R1, 1 - 0 | CZ53: R3, 0 - 1 | DC53: R1, 0.5 - 0.5 | DD53: R5, 0.5 - 0.5 | DF53: R3, 0 - 1 | DG53: R1, 0.5 - 0.5 | DH53: R1, 1 - 0 | DI53: R1, 1 - 0 | DJ53: R4, 0.5 - 0.5 | DK53: R6, 0.5 - 0.5 | DL53: R2, 0.5 - 0.5 | DN53: R2, 1 - 0 | DO53: R1, 0.5 - 0.5 | DR53: R4, 0 - 1 | DU53: R6, 1 - 0 | DV53: R1, 1 - 0 | DW53: R4, 0.5 - 0.5 | DX53: R2, 0.5 - 0.5 | DY53: R6, 0.5 - 0.5
CW54: R3, 0.5 - 0.5 | CX54: R2, 1 - 0 | CZ54: R3, 0 - 1 | DA54: R1, 0 - 1 | DB54: R1, 1 - 0 | DC54: R3, 0 - 1 | DD54: R1, 0 - 1 | DE54: R1, 1 - 0 | DF54: R1, 1 - 0 | DH54: R5, 1 - 0 | DN54: R2, 0 - 1 | DP54: R6, 0.5 - 0.5 | DQ54: R1, 0.5 - 0.5 | DR54: R4, 0.5 - 0.5 | DS54: R4, 0 - 1 | DU54: R1, 1 - 0 | DV54: R4, 0.5 - 0.5
CW55: R3, 3 - 20 | CY55: R1, 0.5 - 0.5 | CZ55: R1, 0.5 - 0.5 | DA55: R1, 0 - 1 | DD55: R1, 1 - 0 | DE55: R1, 0.5 - 0.5 | DF55: R1, 1 - 0 | DH55: R3, 1 - 0 | DI55: R5, 1 - 0 | DM55: R2, 0.5 - 0.5 | DN55: R6, 0.5 - 0.5 | DP55: R2, 1 - 0 | DR55: R2, 0.5 - 0.5 | DS55: R6, 0 - 1 | DT55: R1, 1 - 0 | DV55: R3, 1 - 0 | DW55: R4, 1 - 0 | DX55: R4, 0 - 1 | DY55: R1, 0 - 1
CW56: R1, 1 - 0 | CX56: R3, 1 - 0 | CY56: R3, 0 - 1 | CZ56: R1, 0.5 - 0.5 | DB56: R5, 0.5 - 0.5 | DE56: R3, 0.5 - 0.5 | DF56: R1, 1 - 0 | DG56: R1, 0.5 - 0.5 | DH56: R1, 1 - 0 | DI56: R1, 0 - 1 | DK56: R4, 0 - 1 | DN56: R1, 0 - 1 | DQ56: R6, 0 - 1 | DR56: R6, 1 - 0 | DS56: R1, 1 - 0 | DT56: R3, 1 - 0 | DV56: R4, 0 - 1 | DW56: R1, 1 - 0 | DX56: R6, 5 - 18 | DY56: R2, 0.5 - 0.5
CZ57: R3, 0.5 - 0.5 | DA57: R3, 1 - 0 | DB57: R3, 0.5 - 0.5 | DC57: R1, 0.5 - 0.5 | DH57: R1, 1 - 0 | DK57: R2, 0.5 - 0.5 | DL57: R6, 0 - 1 | DM57: R1, 0 - 1 | DR57: R6, 0 - 1 | DS57: R3, 1 - 0 | DT57: R1, 1 - 0 | DV57: R1, 11 - 11 | DX57: R6, 0 - 1 | DY57: R4, 0 - 1
CW58: R5, 0.5 - 0.5 | CX58: R6, 1 - 0 | CY58: R4, 0.5 - 0.5 | CZ58: R2, 0.5 - 0.5 | DA58: R2, 0 - 1 | DB58: R1, 0.5 - 0.5 | DC58: R1, 0 - 1 | DD58: R6, 0 - 1 | DE58: R2, 1 - 0 | DH58: R2, 0 - 1 | DM58: R1, 0 - 1 | DO58: R3, 0 - 1 | DQ58: R1, 0 - 1 | DR58: R2, 1 - 0 | DU58: R2, 0 - 1 | DV58: R3, 0.5 - 0.5 | DX58: R2, 0 - 1
CW59: R1, 0 - 1 | CX59: R2, 0.5 - 0.5 | CY59: R2, 0.5 - 0.5 | CZ59: R1, 0.5 - 0.5 | DB59: R2, 0.5 - 0.5 | DC59: R5, 0.5 - 0.5 | DD59: R2, 18 - 4 | DE59: R1, 1 - 0 | DF59: R5, 1 - 0 | DG59: R4, 0.5 - 0.5 | DI59: R1, 0 - 1 | DJ59: R3, 0 - 1 | DK59: R3, 0 - 1 | DP59: R1, 0.5 - 0.5 | DQ59: R3, 0 - 1 | DR59: R3, 1 - 0 | DS59: R2, 0 - 1 | DT59: R5, 0 - 1 | DU59: R1, 0.5 - 0.5 | DW59: R2, 1 - 0 | DY59: R2, 0.5 - 0.5
CX60: R2, 0 - 1 | CZ60: R5, 0.5 - 0.5 | DA60: R1, 0 - 1 | DC60: R2, 0 - 1 | DD60: R1, 0.5 - 0.5 | DE60: R2, 0.5 - 0.5 | DF60: R2, 21 - 4 | DG60: R1, 0.5 - 0.5 | DI60: R4, 1 - 0 | DJ60: R1, 0 - 1 | DK60: R1, 1 - 0 | DL60: R2, 1 - 0 | DO60: R3, 0.5 - 0.5 | DP60: R3, 0.5 - 0.5 | DR60: R5, 0 - 1 | DS60: R1, 0.5 - 0.5 | DT60: R2, 1 - 0 | DV60: R2, 0.5 - 0.5 | DW60: R3, 0.5 - 0.5 | DY60: R2, 0.5 - 0.5
CW61: R4, 1 - 0 | CX61: R5, 0.5 - 0.5 | CY61: R1, 1 - 0 | CZ61: R5, 0.5 - 0.5 | DA61: R2, 0 - 1 | DD61: R2, 0 - 1 | DF61: R3, 0 - 1 | DG61: R1, 1 - 0 | DH61: R4, 0.5 - 0.5 | DI61: R1, 1 - 0 | DJ61: R2, 0.5 - 0.5 | DL61: R3, 0 - 1 | DN61: R1, 0 - 1 | DP61: R3, 0 - 1 | DQ61: R1, 0.5 - 0.5 | DR61: R5, 0.5 - 0.5 | DS61: R2, 0 - 1 | DT61: R3, 0 - 1 | DU61: R2, 0.5 - 0.5 | DW61: R1, 1 - 0 | DX61: R2, 0 - 1
CW62: R2, 1 - 0 | CX62: R1, 1 - 0 | CY62: R2, 0 - 1 | CZ62: R6, 0 - 1 | DA62: R1, 1 - 0 | DB62: R1, 0.5 - 0.5 | DC62: R2, 0.5 - 0.5 | DD62: R4, 0.5 - 0.5 | DE62: R1, 1 - 0 | DF62: R4, 1 - 0 | DI62: R5, 0.5 - 0.5 | DJ62: R3, 0 - 1 | DK62: R3, 0 - 1 | DL62: R1, 0.5 - 0.5 | DM62: R3, 1 - 0 | DN62: R2, 0.5 - 0.5 | DO62: R1, 0.5 - 0.5 | DQ62: R5, 0.5 - 0.5 | DU62: R2, 0.5 - 0.5 | DV62: R2, 1 - 0 | DW62: R2, 0 - 1 | DX62: R1, 1 - 0 | DY62: R3, 0 - 1
CW63: R5, 0 - 1 | CX63: R1, 0.5 - 0.5 | CY63: R2, 0.5 - 0.5 | CZ63: R2, 1 - 0 | DA63: R5, 1 - 0 | DB63: R5, 0 - 1 | DE63: R4, 0.5 - 0.5 | DF63: R1, 0.5 - 0.5 | DH63: R1, 0.5 - 0.5 | DI63: R4, 0 - 1 | DK63: R1, 0 - 1 | DM63: R1, 0.5 - 0.5 | DN63: R3, 0 - 1 | DO63: R2, 0 - 1 | DR63: R2, 0 - 1 | DU63: R2, 0 - 1 | DY63: R5, 1 - 0
CW64: R2, 0.5 - 0.5 | CY64: R1, 0 - 1 | DA64: R5, 0 - 1 | DB64: R4, 1 - 0 | DC64: R1, 1 - 0 | DD64: R5, 0 - 1 | DF64: R2, 1 - 0 | DG64: R4, 0 - 1 | DH64: R1, 0.5 - 0.5 | DI64: R4, 0 - 1 | DJ64: R1, 1 - 0 | DK64: R3, 1 - 0 | DL64: R3, 1 - 0 | DM64: R2, 0 - 1 | DN64: R1, 1 - 0 | DQ64: R3, 0.5 - 0.5 | DS64: R3, 0.5 - 0.5 | DT64: R2, 0 - 1 | DV64: R5, 1 - 0 | DW64: R1, 0.5 - 0.5 | DX64: R2, 0 - 1 | DY64: R3, 0 - 1
CW65: R1, 0 - 1 | CX65: R2, 0 - 1 | CY65: R6, 1 - 0 | CZ65: R4, 0.5 - 0.5 | DC65: R4, 1 - 0 | DD65: R1, 1 - 0 | DF65: R1, 0 - 1 | DG65: R2, 1 - 0 | DH65: R2, 4 - 21 | DI65: R4, 0.5 - 0.5 | DK65: R2, 0.5 - 0.5 | DL65: R1, 1 - 0 | DN65: R3, 0 - 1 | DO65: R1, 0 - 1 | DP65: R3, 0.5 - 0.5 | DS65: R2, 0 - 1 | DU65: R5, 0.5 - 0.5 | DW65: R2, 1 - 0 | DX65: R3, 0.5 - 0.5 | DY65: R2, 0.5 - 0.5
CW66: R1, 0 - 1 | CX66: R1, 0 - 1 | CZ66: R3, 0.5 - 0.5 | DC66: R1, 0.5 - 0.5 | DD66: R2, 1 - 0 | DE66: R4, 0 - 1 | DG66: R2, 0 - 1 | DH66: R5, 0.5 - 0.5 | DI66: R2, 1 - 0 | DJ66: R4, 0 - 1 | DK66: R1, 6 - 22 | DL66: R4, 0.5 - 0.5 | DN66: R2, 0.5 - 0.5 | DO66: R5, 0.5 - 0.5 | DP66: R4, 0.5 - 0.5 | DQ66: R4, 0.5 - 0.5 | DR66: R1, 0 - 1 | DS66: R5, 0 - 1 | DT66: R3, 1 - 0 | DU66: R1, 1 - 0 | DV66: R6, 0 - 1 | DW66: R5, 0.5 - 0.5 | DX66: R3, 1 - 0 | DY66: R2, 1 - 0
CY67: R6, 0.5 - 0.5 | DA67: R2, 0 - 1 | DB67: R2, 1 - 0 | DC67: R2, 1 - 0 | DD67: R2, 0 - 1 | DE67: R2, 0 - 1 | DF67: R1, 0.5 - 0.5 | DI67: R5, 0 - 1 | DJ67: R5, 1 - 0 | DK67: R4, 0 - 1 | DL67: R2, 0.5 - 0.5 | DM67: R4, 1 - 0 | DN67: R5, 1 - 0 | DR67: R1, 0 - 1 | DV67: R3, 1 - 0 | DW67: R3, 0 - 1 | DX67: R1, 0.5 - 0.5 | DY67: R5, 0.5 - 0.5
CW68: R6, 0.5 - 0.5 | CZ68: R1, 1 - 0 | DB68: R2, 0.5 - 0.5 | DC68: R2, 1 - 0 | DD68: R1, 1 - 0 | DE68: R2, 0 - 1 | DI68: R2, 0 - 1 | DJ68: R4, 0 - 1 | DK68: R5, 0 - 1 | DL68: R4, 0.5 - 0.5 | DN68: R5, 1 - 0 | DO68: R4, 0.5 - 0.5 | DP68: R4, 0.5 - 0.5 | DQ68: R5, 0.5 - 0.5 | DS68: R3, 1 - 0 | DU68: R1, 0 - 1 | DV68: R3, 1 - 0 | DW68: R3, 0 - 1 | DX68: R5, 0 - 1
CW69: R2, 1 - 0 | CX69: R1, 0.5 - 0.5 | DB69: R2, 0.5 - 0.5 | DC69: R5, 0.5 - 0.5 | DD69: R2, 4 - 21 | DE69: R2, 1 - 0 | DF69: R2, 1 - 0 | DH69: R1, 0.5 - 0.5 | DI69: R4, 1 - 0 | DJ69: R4, 0.5 - 0.5 | DK69: R5, 0 - 1 | DM69: R1, 9 - 10 | DN69: R5, 1 - 0 | DO69: R4, 0 - 1 | DP69: R3, 0.5 - 0.5 | DS69: R1, 0.5 - 0.5 | DT69: R1, 0.5 - 0.5 | DU69: R3, 1 - 0 | DV69: R3, 0 - 1 | DW69: R5, 1 - 0
CX70: R3, 0 - 1 | CY70: R2, 0 - 1 | CZ70: R2, 1 - 0 | DA70: R1, 1 - 0 | DB70: R1, 0.5 - 0.5 | DD70: R2, 0 - 1 | DF70: R2, 0.5 - 0.5 | DG70: R2, 0.5 - 0.5 | DH70: R2, 1 - 0 | DJ70: R4, 1 - 0 | DL70: R5, 0 - 1 | DN70: R5, 23 - 4 | DO70: R1, 5 - 23 | DP70: R4, 1 - 0 | DQ70: R4, 1 - 0 | DT70: R3, 0 - 1 | DU70: R3, 0.5 - 0.5 | DV70: R3, 0 - 1 | DW70: R2, 0 - 1 | DX70: R3, 1 - 0 | DY70: R1, 0 - 1
CW71: R1, 1 - 0 | CX71: R2, 0.5 - 0.5 | DA71: R3, 0 - 1 | DC71: R2, 0 - 1 | DE71: R1, 0 - 1 | DF71: R2, 0.5 - 0.5 | DG71: R2, 0.5 - 0.5 | DH71: R2, 0 - 1 | DL71: R5, 1 - 0 | DM71: R4, 1 - 0 | DN71: R4, 0 - 1 | DO71: R5, 0 - 1 | DP71: R4, 1 - 0 | DR71: R3, 1 - 0 | DS71: R3, 0 - 1 | DT71: R5, 1 - 0 | DW71: R1, 0.5 - 0.5 | DY71: R3, 0.5 - 0.5
CY72: R2, 0 - 1 | CZ72: R2, 1 - 0 | DA72: R6, 0.5 - 0.5 | DC72: R5, 0 - 1 | DD72: R2, 1 - 0 | DE72: R5, 1 - 0 | DF72: R2, 1 - 0 | DG72: R1, 1 - 0 | DH72: R2, 1 - 0 | DJ72: R1, 9 - 9 | DK72: R4, 0.5 - 0.5 | DL72: R5, 0.5 - 0.5 | DM72: R5, 1 - 0 | DP72: R6, 1 - 0 | DQ72: R4, 1 - 0 | DR72: R5, 1 - 0 | DT72: R1, 1 - 0 | DU72: R3, 0.5 - 0.5 | DV72: R1, 0.5 - 0.5 | DX72: R5, 0 - 1 | DY72: R3, 1 - 0
CX73: R6, 0.5 - 0.5 | CY73: R3, 0 - 1 | CZ73: R1, 1 - 0 | DB73: R2, 1 - 0 | DE73: R2, 0 - 1 | DF73: R4, 1 - 0 | DG73: R2, 1 - 0 | DI73: R1, 1 - 0 | DL73: R4, 0 - 1 | DM73: R5, 0 - 1 | DO73: R4, 0 - 1 | DP73: R5, 1 - 0 | DQ73: R1, 9 - 11 | DR73: R5, 0.5 - 0.5 | DS73: R3, 0 - 1 | DT73: R5, 1 - 0 | DV73: R1, 0 - 1 | DX73: R3, 0.5 - 0.5 | DY73: R3, 1 - 0
CX74: R3, 0 - 1 | CY74: R1, 0 - 1 | DA74: R5, 0 - 1 | DB74: R1, 0.5 - 0.5 | DC74: R3, 1 - 0 | DE74: R1, 1 - 0 | DG74: R2, 1 - 0 | DH74: R4, 0.5 - 0.5 | DL74: R1, 0.5 - 0.5 | DM74: R6, 1 - 0 | DN74: R2, 0.5 - 0.5 | DO74: R6, 0.5 - 0.5 | DP74: R1, 0 - 1 | DS74: R5, 1 - 0 | DX74: R1, 0.5 - 0.5 | DY74: R1, 20 - 5
CX75: R5, 0 - 1 | CY75: R3, 0 - 1 | DA75: R6, 0 - 1 | DB75: R5, 0 - 1 | DD75: R2, 0.5 - 0.5 | DG75: R1, 0.5 - 0.5 | DI75: R6, 1 - 0 | DJ75: R6, 0 - 1 | DK75: R6, 1 - 0 | DM75: R1, 0 - 1 | DP75: R2, 0.5 - 0.5 | DT75: R5, 0.5 - 0.5 | DU75: R1, 4 - 20 | DV75: R1, 0.5 - 0.5 | DY75: R1, 1 - 0
CW76: R1, 1 - 0 | CX76: R3, 20 - 6 | CY76: R2, 0 - 1 | CZ76: R1, 0.5 - 0.5 | DA76: R3, 0 - 1 | DB76: R1, 0.5 - 0.5 | DC76: R5, 0.5 - 0.5 | DF76: R1, 0 - 1 | DG76: R6, 1 - 0 | DH76: R2, 1 - 0 | DK76: R2, 1 - 0 | DN76: R6, 0 - 1 | DP76: R6, 0 - 1 | DU76: R1, 1 - 0 | DV76: R5, 1 - 0 | DW76: R1, 1 - 0 | DY76: R2, 0 - 1
CW77: R3, 1 - 0 | CX77: R1, 0 - 1 | CY77: R1, 0.5 - 0.5 | CZ77: R6, 1 - 0 | DB77: R4, 23 - 4 | DC77: R2, 1 - 0 | DD77: R1, 0.5 - 0.5 | DF77: R5, 1 - 0 | DH77: R1, 1 - 0 | DK77: R1, 1 - 0 | DM77: R2, 0 - 1 | DO77: R6, 0.5 - 0.5 | DP77: R1, 1 - 0 | DQ77: R6, 0.5 - 0.5 | DR77: R1, 1 - 0 | DT77: R1, 1 - 0 | DU77: R5, 1 - 0 | DX77: R5, 0 - 1
CW78: R2, 1 - 0 | CX78: R6, 1 - 0 | CZ78: R5, 0.5 - 0.5 | DA78: R1, 0.5 - 0.5 | DB78: R6, 1 - 0 | DC78: R1, 0 - 1 | DE78: R5, 1 - 0 | DG78: R4, 0 - 1 | DI78: R2, 0 - 1 | DJ78: R2, 1 - 0 | DL78: R6, 1 - 0 | DO78: R2, 0 - 1 | DQ78: R1, 0 - 1 | DT78: R1, 1 - 0 | DW78: R1, 1 - 0 | DX78: R5, 0.5 - 0.5
CW79: R6, 1 - 0 | CZ79: R1, 1 - 0 | DC79: R4, 0 - 1 | DD79: R1, 0 - 1 | DE79: R2, 1 - 0 | DH79: R1, 1 - 0 | DK79: R6, 0 - 1 | DL79: R2, 1 - 0 | DN79: R6, 1 - 0 | DS79: R4, 0 - 1 | DU79: R1, 0.5 - 0.5 | DW79: R1, 20 - 4 | DX79: R6, 0.5 - 0.5 | DY79: R1, 1 - 0
CW80: R5, 0.5 - 0.5 | CX80: R1, 1 - 0 | CY80: R3, 1 - 0 | DA80: R3, 0 - 1 | DE80: R2, 0 - 1 | DF80: R1, 0 - 1 | DI80: R1, 0.5 - 0.5 | DJ80: R2, 1 - 0 | DL80: R6, 0 - 1 | DM80: R6, 1 - 0 | DO80: R1, 0.5 - 0.5 | DQ80: R2, 1 - 0 | DR80: R1, 1 - 0 | DS80: R1, 1 - 0 | DT80: R1, 2 - 17 | DY80: R5, 0.5 - 0.5
CW81: R1, 1 - 0 | CY81: R5, 0.5 - 0.5 | CZ81: R2, 1 - 0 | DA81: R1, 1 - 0 | DB81: R2, 0.5 - 0.5 | DC81: R6, 1 - 0 | DE81: R1, 0.5 - 0.5 | DH81: R5, 0.5 - 0.5 | DI81: R1, 1 - 0 | DJ81: R1, 0.5 - 0.5 | DL81: R2, 6 - 19 | DP81: R6, 1 - 0 | DQ81: R2, 0 - 1 | DR81: R5, 0 - 1 | DS81: R1, 0.5 - 0.5 | DU81: R6, 0 - 1 | DV81: R1, 1 - 0 | DW81: R5, 1 - 0
CW82: R2, 20 - 8 | CY82: R1, 1 - 0 | DA82: R1, 0.5 - 0.5 | DC82: R3, 0 - 1 | DD82: R3, 0.5 - 0.5 | DE82: R1, 0.5 - 0.5 | DH82: R1, 1 - 0 | DJ82: R1, 0 - 1 | DK82: R6, 0 - 1 | DL82: R2, 0 - 1 | DN82: R3, 0.5 - 0.5 | DO82: R1, 1 - 0 | DP82: R1, 1 - 0 | DQ82: R6, 1 - 0 | DR82: R2, 0.5 - 0.5 | DS82: R3, 1 - 0 | DV82: R2, 1 - 0 | DW82: R2, 0.5 - 0.5 | DX82: R6, 0 - 1
CW83: R6, 1 - 0 | CX83: R1, 1 - 0 | DB83: R3, 0 - 1 | DD83: R1, 1 - 0 | DE83: R4, 6 - 21 | DF83: R3, 1 - 0 | DI83: R3, 1 - 0 | DK83: R1, 0.5 - 0.5 | DL83: R6, 0 - 1 | DO83: R5, 0 - 1 | DP83: R2, 0 - 1 | DQ83: R1, 0.5 - 0.5 | DR83: R6, 0 - 1 | DS83: R2, 0.5 - 0.5 | DU83: R2, 1 - 0 | DV83: R2, 0.5 - 0.5 | DW83: R2, 0.5 - 0.5 | DY83: R2, 0.5 - 0.5
CW84: R5, 0.5 - 0.5 | CX84: R6, 1 - 0 | CY84: R1, 0.5 - 0.5 | DA84: R1, 0.5 - 0.5 | DC84: R1, 1 - 0 | DG84: R1, 0.5 - 0.5 | DH84: R3, 1 - 0 | DI84: R3, 0 - 1 | DL84: R1, 0.5 - 0.5 | DM84: R6, 0.5 - 0.5 | DN84: R2, 0.5 - 0.5 | DO84: R6, 0 - 1 | DP84: R6, 0.5 - 0.5 | DQ84: R1, 1 - 0 | DR84: R3, 0 - 1 | DS84: R6, 1 - 0 | DT84: R1, 1 - 0 | DU84: R2, 1 - 0 | DY84: R2, 0.5 - 0.5
CW85: R2, 0 - 1 | CX85: R5, 1 - 0 | CZ85: R1, 0 - 1 | DC85: R3, 1 - 0 | DD85: R3, 0.5 - 0.5 | DG85: R1, 0.5 - 0.5 | DH85: R1, 1 - 0 | DI85: R3, 0 - 1 | DJ85: R1, 1 - 0 | DM85: R3, 1 - 0 | DN85: R1, 1 - 0 | DO85: R2, 0.5 - 0.5 | DQ85: R1, 0 - 1 | DR85: R1, 0 - 1 | DT85: R2, 0.5 - 0.5 | DU85: R3, 0 - 1 | DW85: R2, 0 - 1 | DX85: R2, 0.5 - 0.5 | DY85: R1, 0 - 1
CW86: R1, 0 - 1 | CX86: R2, 9 - 8 | CY86: R1, 10 - 10 | DA86: R6, 1 - 0 | DB86: R3, 0.5 - 0.5 | DC86: R1, 0.5 - 0.5 | DE86: R1, 1 - 0 | DH86: R4, 1 - 0 | DK86: R1, 1 - 0 | DM86: R2, 0 - 1 | DN86: R1, 1 - 0 | DO86: R6, 0 - 1 | DP86: R1, 0.5 - 0.5 | DQ86: R2, 0.5 - 0.5 | DR86: R2, 1 - 0 | DS86: R2, 1 - 0 | DT86: R3, 0 - 1 | DU86: R2, 1 - 0 | DV86: R2, 0 - 1 | DY86: R6, 1 - 0
CW87: R1, 1 - 0 | CX87: R1, 0.5 - 0.5 | CY87: R5, 0.5 - 0.5 | CZ87: R1, 4 - 18 | DB87: R3, 0 - 1 | DC87: R4, 0 - 1 | DG87: R3, 1 - 0 | DH87: R3, 0 - 1 | DI87: R1, 0.5 - 0.5 | DJ87: R6, 0 - 1 | DK87: R2, 0 - 1 | DL87: R1, 0.5 - 0.5 | DM87: R1, 0 - 1 | DN87: R6, 0 - 1 | DO87: R1, 1 - 0 | DP87: R3, 1 - 0 | DS87: R2, 1 - 0 | DU87: R6, 1 - 0 | DV87: R3, 1 - 0 | DX87: R2, 0 - 1 | DY87: R2, 0.5 - 0.5
CX88: R1, 0.5 - 0.5 | CY88: R1, 1 - 0 | CZ88: R1, 0 - 1 | DA88: R1, 11 - 11 | DD88: R3, 1 - 0 | DF88: R1, 0.5 - 0.5 | DG88: R3, 0 - 1 | DI88: R1, 0.5 - 0.5 | DJ88: R3, 1 - 0 | DK88: R1, 1 - 0 | DL88: R3, 0.5 - 0.5 | DN88: R1, 1 - 0 | DO88: R1, 0 - 1 | DQ88: R2, 0 - 1 | DR88: R2, 1 - 0 | DT88: R2, 0 - 1 | DU88: R2, 0 - 1 | DV88: R2, 0.5 - 0.5 | DW88: R6, 0.5 - 0.5 | DX88: R2, 0.5 - 0.5 | DY88: R3, 0 - 1
CZ89: R1, 1 - 0 | DA89: R2, 0 - 1 | DB89: R1, 1 - 0 | DC89: R3, 0 - 1 | DD89: R1, 0 - 1 | DE89: R3, 0 - 1 | DG89: R3, 1 - 0 | DH89: R6, 1 - 0 | DJ89: R1, 1 - 0 | DL89: R6, 0.5 - 0.5 | DM89: R1, 0.5 - 0.5 | DO89: R3, 0.5 - 0.5 | DP89: R1, 1 - 0 | DT89: R2, 1 - 0 | DV89: R2, 0 - 1 | DW89: R2, 0.5 - 0.5 | DX89: R3, 0.5 - 0.5 | DY89: R2, 0.5 - 0.5
CW90: R3, 0 - 1 | CX90: R3, 0 - 1 | CY90: R3, 0 - 1 | CZ90: R2, 0.5 - 0.5 | DA90: R1, 1 - 0 | DC90: R1, 0 - 1 | DF90: R5, 0.5 - 0.5 | DG90: R4, 0.5 - 0.5 | DK90: R6, 1 - 0 | DL90: R2, 0 - 1 | DM90: R1, 0.5 - 0.5 | DO90: R1, 0 - 1 | DP90: R4, 1 - 0 | DS90: R3, 12 - 15 | DT90: R4, 1 - 0 | DV90: R1, 0 - 1 | DW90: R1, 1 - 0 | DY90: R6, 0.5 - 0.5
CY91: R3, 0 - 1 | CZ91: R1, 0.5 - 0.5 | DA91: R2, 1 - 0 | DC91: R4, 0 - 1 | DD91: R1, 1 - 0 | DJ91: R2, 1 - 0 | DK91: R1, 0.5 - 0.5 | DL91: R4, 1 - 0 | DM91: R1, 0.5 - 0.5 | DQ91: R1, 0 - 1 | DR91: R1, 1 - 0 | DS91: R6, 1 - 0 | DW91: R4, 0 - 1 | DY91: R3, 19 - 4
CX92: R2, 0 - 1 | CY92: R2, 1 - 0 | CZ92: R2, 0 - 1 | DB92: R5, 0 - 1 | DF92: R6, 0.5 - 0.5 | DH92: R1, 0 - 1 | DJ92: R1, 0 - 1 | DK92: R4, 1 - 0 | DL92: R1, 0.5 - 0.5 | DQ92: R6, 0.5 - 0.5 | DR92: R6, 0 - 1 | DS92: R4, 0 - 1 | DT92: R1, 1 - 0 | DU92: R1, 0.5 - 0.5 | DV92: R3, 22 - 2 | DY92: R6, 0.5 - 0.5
CW93: R1, 0.5 - 0.5 | CX93: R2, 1 - 0 | CY93: R2, 1 - 0 | CZ93: R2, 0.5 - 0.5 | DE93: R5, 0.5 - 0.5 | DG93: R1, 0.5 - 0.5 | DI93: R6, 0.5 - 0.5 | DJ93: R6, 0.5 - 0.5 | DM93: R2, 0.5 - 0.5 | DN93: R1, 0 - 1 | DO93: R1, 0 - 1 | DQ93: R4, 1 - 0 | DS93: R5, 0 - 1 | DT93: R4, 0.5 - 0.5 | DU93: R1, 1 - 0 | DV93: R4, 0 - 1 | DW93: R1, 1 - 0
CW94: R2, 0.5 - 0.5 | CX94: R1, 0.5 - 0.5 | CZ94: R3, 0 - 1 | DA94: R2, 0 - 1 | DD94: R3, 0 - 1 | DF94: R1, 1 - 0 | DI94: R5, 0 - 1 | DK94: R1, 1 - 0 | DL94: R1, 1 - 0 | DM94: R4, 0.5 - 0.5 | DQ94: R2, 1 - 0 | DR94: R4, 0.5 - 0.5 | DS94: R1, 0 - 1 | DT94: R6, 0.5 - 0.5 | DV94: R1, 1 - 0
CW95: R3, 1 - 0 | CX95: R1, 1 - 0 | CY95: R2, 0 - 1 | CZ95: R2, 0.5 - 0.5 | DA95: R3, 0.5 - 0.5 | DC95: R5, 1 - 0 | DI95: R1, 0.5 - 0.5 | DJ95: R1, 1 - 0 | DK95: R1, 0 - 1 | DN95: R4, 0 - 1 | DP95: R6, 1 - 0 | DT95: R1, 1 - 0 | DW95: R6, 1 - 0 | DX95: R1, 0.5 - 0.5 | DY95: R4, 1 - 0
CW96: R2, 0.5 - 0.5 | CY96: R3, 0.5 - 0.5 | CZ96: R3, 1 - 0 | DA96: R6, 1 - 0 | DB96: R5, 6 - 20 | DE96: R1, 0.5 - 0.5 | DG96: R5, 0.5 - 0.5 | DJ96: R4, 1 - 0 | DM96: R5, 0 - 1 | DN96: R6, 0.5 - 0.5 | DO96: R2, 0 - 1 | DP96: R1, 0.5 - 0.5 | DQ96: R1, 0.5 - 0.5 | DS96: R1, 0 - 1 | DU96: R4, 1 - 0 | DW96: R3, 19 - 5 | DX96: R6, 0 - 1 | DY96: R1, 1 - 0
CW97: R3, 1 - 0 | CX97: R3, 0.5 - 0.5 | CY97: R6, 1 - 0 | DB97: R1, 1 - 0 | DG97: R4, 0.5 - 0.5 | DH97: R5, 0 - 1 | DN97: R1, 0 - 1 | DO97: R4, 0.5 - 0.5 | DP97: R2, 0 - 1 | DQ97: R1, 1 - 0 | DS97: R3, 11 - 12 | DU97: R3, 0 - 1 | DV97: R6, 0 - 1 | DX97: R1, 0.5 - 0.5 | DY97: R1, 1 - 0
CW98: R4, 20 - 6 | DB98: R2, 0 - 1 | DD98: R3, 0.5 - 0.5 | DE98: R3, 0 - 1 | DF98: R5, 0 - 1 | DG98: R6, 0 - 1 | DI98: R1, 12 - 12 | DJ98: R1, 0.5 - 0.5 | DK98: R3, 1 - 0 | DL98: R1, 0.5 - 0.5 | DN98: R1, 0.5 - 0.5 | DO98: R2, 0.5 - 0.5 | DP98: R3, 0 - 1 | DS98: R1, 0.5 - 0.5 | DV98: R1, 0 - 1 | DY98: R2, 0 - 1
DC99: R5, 1 - 0 | DD99: R3, 0.5 - 0.5 | DE99: R5, 0 - 1 | DF99: R6, 0.5 - 0.5 | DH99: R2, 1 - 0 | DI99: R6, 0.5 - 0.5 | DK99: R1, 0 - 1 | DM99: R1, 1 - 0 | DN99: R5, 0.5 - 0.5 | DO99: R3, 0.5 - 0.5 | DP99: R2, 1 - 0 | DW99: R2, 0 - 1 | DX99: R2, 1 - 0 | DY99: R1, 1 - 0
DB100: R5, 0 - 1 | DD100: R6, 0.5 - 0.5 | DE100: R6, 0.5 - 0.5 | DF100: R3, 1 - 0 | DG100: R2, 0 - 1 | DK100: R1, 0.5 - 0.5 | DL100: R5, 0 - 1 | DM100: R2, 0.5 - 0.5 | DO100: R1, 0.5 - 0.5 | DQ100: R3, 1 - 0 | DR100: R2, 0.5 - 0.5 | DU100: R1, 0 - 1
CX101: R6, 1 - 0 | DB101: R5, 1 - 0 | DC101: R2, 1 - 0 | DE101: R5, 2 - 18 | DF101: R6, 1 - 0 | DG101: R5, 0 - 1 | DH101: R6, 0 - 1 | DK101: R2, 1 - 0 | DL101: R1, 0 - 1 | DM101: R3, 1 - 0 | DN101: R1, 0.5 - 0.5 | DR101: R6, 0.5 - 0.5 | DS101: R2, 0.5 - 0.5 | DV101: R1, 1 - 0 | DX101: R2, 1 - 0
CW102: R6, 0 - 1 | DB102: R6, 0 - 1 | DC102: R6, 1 - 0 | DD102: R6, 1 - 0 | DE102: R2, 1 - 0 | DH102: R3, 0 - 1 | DI102: R5, 0.5 - 0.5 | DJ102: R1, 0 - 1 | DK102: R6, 20 - 3 | DN102: R3, 0.5 - 0.5 | DQ102: R5, 0 - 1 | DS102: R1, 1 - 0 | DV102: R2, 1 - 0 | DW102: R1, 1 - 0
DB103: R3, 0.5 - 0.5 | DC103: R5, 0.5 - 0.5 | DD103: R2, 0.5 - 0.5 | DE103: R6, 0.5 - 0.5 | DF103: R1, 19 - 5 | DK103: R3, 0 - 1 | DM103: R1, 1 - 0 | DO103: R5, 0 - 1 | DQ103: R1, 0.5 - 0.5 | DR103: R1, 0 - 1 | DT103: R2, 0 - 1 | DY103: R1, 0 - 1
DB104: R6, 0 - 1 | DC104: R6, 1 - 0 | DD104: R5, 0.5 - 0.5 | DG104: R1, 11 - 12 | DI104: R2, 0 - 1 | DJ104: R3, 1 - 0 | DM104: R6, 1 - 0 | DN104: R2, 0.5 - 0.5 | DO104: R1, 0.5 - 0.5 | DP104: R1, 0 - 1 | DQ104: R1, 0.5 - 0.5 | DS104: R2, 1 - 0 | DT104: R1, 0 - 1 | DV104: R4, 0 - 1 | DX104: R1, 0.5 - 0.5
DB105: R5, 0 - 1 | DE105: R2, 0 - 1 | DF105: R2, 1 - 0 | DG105: R6, 1 - 0 | DH105: R5, 1 - 0 | DI105: R6, 0.5 - 0.5 | DJ105: R5, 0.5 - 0.5 | DK105: R3, 10 - 10 | DL105: R3, 0.5 - 0.5 | DM105: R1, 0.5 - 0.5 | DP105: R1, 0.5 - 0.5 | DQ105: R2, 13 - 15 | DR105: R4, 1 - 0 | DT105: R1, 0.5 - 0.5 | DU105: R2, 1 - 0
CW106: R5, 0 - 1 | CX106: R6, 1 - 0 | CY106: R3, 0.5 - 0.5 | CZ106: R6, 1 - 0 | DA106: R5, 1 - 0 | DJ106: R6, 1 - 0 | DK106: R6, 0 - 1 | DL106: R5, 1 - 0 | DM106: R2, 1 - 0 | DO106: R1, 0.5 - 0.5 | DP106: R1, 1 - 0 | DQ106: R2, 0 - 1 | DS106: R2, 1 - 0 | DT106: R6, 1 - 0 | DU106: R3, 1 - 0 | DV106: R2, 0.5 - 0.5 | DW106: R6, 0.5 - 0.5 | DX106: R6, 0.5 - 0.5 | DY106: R1, 0.5 - 0.5
CW107: R2, 0 - 1 | CX107: R6, 0 - 1 | CY107: R5, 0.5 - 0.5 | CZ107: R6, 0 - 1 | DJ107: R1, 0.5 - 0.5 | DK107: R2, 0.5 - 0.5 | DL107: R1, 0.5 - 0.5 | DN107: R3, 0.5 - 0.5 | DO107: R5, 0.5 - 0.5 | DP107: R2, 0 - 1 | DR107: R3, 0.5 - 0.5 | DT107: R1, 1 - 0 | DU107: R6, 1 - 0 | DX107: R6, 0.5 - 0.5 | DY107: R5, 1 - 0
CX108: R6, 0 - 1 | CY108: R2, 0.5 - 0.5 | CZ108: R5, 0.5 - 0.5 | DE108: R6, 10 - 11 | DG108: R5, 19 - 4 | DJ108: R2, 0.5 - 0.5 | DL108: R2, 0.5 - 0.5 | DM108: R1, 0 - 1 | DN108: R1, 0 - 1 | DP108: R2, 1 - 0 | DQ108: R5, 0.5 - 0.5 | DS108: R1, 0 - 1 | DT108: R1, 1 - 0 | DU108: R6, 0.5 - 0.5 | DV108: R3, 0.5 - 0.5 | DW108: R6, 0 - 1 | DY108: R4, 0 - 1
CW109: R5, 18 - 2 | CX109: R2, 0 - 1 | CY109: R6, 0.5 - 0.5 | DA109: R2, 1 - 0 | DD109: R6, 11 - 10 | DG109: R3, 8 - 8 | DK109: R5, 0.5 - 0.5 | DL109: R1, 0.5 - 0.5 | DM109: R1, 0 - 1 | DN109: R1, 0 - 1 | DO109: R2, 0 - 1 | DQ109: R1, 1 - 0 | DR109: R2, 0.5 - 0.5 | DS109: R6, 1 - 0 | DT109: R6, 0.5 - 0.5 | DU109: R1, 1 - 0 | DV109: R1, 0 - 1 | DY109: R3, 0.5 - 0.5
CW110: R6, 0 - 1 | CY110: R1, 5 - 19 | DA110: R2, 0 - 1 | DH110: R2, 0 - 1 | DI110: R6, 0 - 1 | DJ110: R5, 0 - 1 | DK110: R6, 1 - 0 | DM110: R1, 1 - 0 | DN110: R1, 0 - 1 | DO110: R1, 0.5 - 0.5 | DP110: R3, 5 - 21 | DQ110: R1, 0.5 - 0.5 | DR110: R6, 1 - 0 | DS110: R6, 22 - 5 | DT110: R6, 1 - 0 | DV110: R1, 1 - 0 | DW110: R1, 1 - 0 | DX110: R5, 0.5 - 0.5 | DY110: R2, 0 - 1
CW111: R5, 1 - 0 | CZ111: R1, 12 - 11 | DA111: R6, 0 - 1 | DD111: R5, 4 - 19 | DE111: R3, 8 - 8 | DH111: R5, 1 - 0 | DJ111: R3, 0.5 - 0.5 | DK111: R1, 1 - 0 | DL111: R2, 0 - 1 | DM111: R2, 1 - 0 | DN111: R2, 1 - 0 | DO111: R1, 0.5 - 0.5 | DP111: R5, 0 - 1 | DR111: R6, 0.5 - 0.5 | DS111: R3, 0 - 1 | DT111: R4, 1 - 0 | DW111: R3, 0 - 1 | DX111: R2, 1 - 0 | DY111: R6, 0 - 1
CW112: R6, 1 - 0 | CX112: R3, 1 - 0 | DA112: R5, 0 - 1 | DF112: R2, 1 - 0 | DG112: R5, 0 - 1 | DJ112: R1, 0 - 1 | DK112: R1, 0 - 1 | DM112: R4, 1 - 0 | DN112: R5, 0.5 - 0.5 | DO112: R2, 1 - 0 | DP112: R3, 20 - 4 | DQ112: R2, 0.5 - 0.5 | DR112: R1, 1 - 0 | DS112: R6, 0.5 - 0.5 | DT112: R5, 1 - 0 | DU112: R4, 0.5 - 0.5 | DW112: R2, 0 - 1 | DX112: R3, 0 - 1 | DY112: R6, 0.5 - 0.5
CX113: R5, 0.5 - 0.5 | CZ113: R2, 1 - 0 | DA113: R6, 0.5 - 0.5 | DF113: R6, 1 - 0 | DJ113: R1, 0.5 - 0.5 | DM113: R5, 0.5 - 0.5 | DN113: R2, 0.5 - 0.5 | DO113: R1, 0.5 - 0.5 | DP113: R2, 1 - 0 | DQ113: R1, 1 - 0 | DS113: R3, 0.5 - 0.5 | DU113: R5, 1 - 0 | DV113: R6, 1 - 0 | DW113: R4, 1 - 0 | DY113: R2, 0 - 1
CX114: R1, 1 - 0 | CZ114: R3, 0 - 1 | DA114: R5, 0.5 - 0.5 | DB114: R6, 0 - 1 | DC114: R1, 0.5 - 0.5 | DD114: R2, 0.5 - 0.5 | DF114: R5, 1 - 0 | DG114: R3, 0.5 - 0.5 | DH114: R1, 1 - 0 | DI114: R1, 0.5 - 0.5 | DL114: R6, 2 - 19 | DN114: R3, 20 - 3 | DU114: R2, 0.5 - 0.5 | DV114: R1, 0.5 - 0.5 | DW114: R2, 1 - 0 | DY114: R1, 0 - 1
CW115: R2, 0 - 1 | CX115: R6, 3 - 20 | CY115: R3, 1 - 0 | DA115: R3, 10 - 10 | DB115: R6, 1 - 0 | DC115: R2, 0.5 - 0.5 | DE115: R5, 0.5 - 0.5 | DF115: R6, 0 - 1 | DG115: R1, 0 - 1 | DH115: R1, 1 - 0 | DT115: R1, 0.5 - 0.5 | DU115: R2, 1 - 0 | DV115: R6, 1 - 0 | DX115: R2, 0.5 - 0.5
CW116: R1, 1 - 0 | DA116: R3, 0.5 - 0.5 | DB116: R5, 0 - 1 | DC116: R1, 0.5 - 0.5 | DD116: R2, 0.5 - 0.5 | DE116: R1, 0.5 - 0.5 | DG116: R2, 1 - 0 | DJ116: R6, 19 - 2 | DQ116: R5, 0 - 1 | DR116: R4, 1 - 0 | DS116: R6, 0 - 1 | DV116: R2, 1 - 0 | DW116: R1, 1 - 0 | DY116: R4, 0 - 1
CW117: R3, 0 - 1 | CY117: R1, 0 - 1 | CZ117: R6, 0 - 1 | DA117: R1, 0.5 - 0.5 | DB117: R2, 0 - 1 | DD117: R1, 1 - 0 | DE117: R1, 1 - 0 | DF117: R1, 0 - 1 | DG117: R2, 0 - 1 | DH117: R4, 0 - 1 | DI117: R5, 0.5 - 0.5 | DP117: R2, 1 - 0 | DR117: R2, 1 - 0 | DS117: R2, 1 - 0 | DV117: R5, 22 - 8 | DW117: R4, 0 - 1 | DY117: R1, 1 - 0
CW118: R1, 0.5 - 0.5 | CX118: R3, 0.5 - 0.5 | CZ118: R2, 0.5 - 0.5 | DC118: R3, 0.5 - 0.5 | DD118: R1, 1 - 0 | DE118: R1, 1 - 0 | DF118: R1, 1 - 0 | DG118: R2, 0 - 1 | DH118: R5, 0.5 - 0.5 | DI118: R2, 0.5 - 0.5 | DJ118: R3, 3 - 20 | DR118: R1, 0 - 1 | DS118: R3, 0 - 1 | DT118: R2, 0.5 - 0.5 | DW118: R6, 0.5 - 0.5 | DX118: R2, 0.5 - 0.5 | DY118: R4, 1 - 0
CY119: R5, 1 - 0 | CZ119: R1, 0.5 - 0.5 | DB119: R1, 0.5 - 0.5 | DC119: R5, 0.5 - 0.5 | DE119: R2, 1 - 0 | DF119: R1, 0.5 - 0.5 | DG119: R1, 0.5 - 0.5 | DH119: R2, 0 - 1 | DI119: R1, 0.5 - 0.5 | DQ119: R4, 19 - 2 | DR119: R2, 1 - 0 | DS119: R1, 0 - 1 | DT119: R2, 1 - 0 | DX119: R1, 1 - 0
CZ120: R1, 1 - 0 | DA120: R1, 0.5 - 0.5 | DB120: R1, 0 - 1 | DC120: R2, 1 - 0 | DD120: R2, 0 - 1 | DF120: R3, 21 - 5 | DG120: R5, 1 - 0 | DH120: R3, 4 - 20 | DI120: R2, 0 - 1 | DM120: R2, 0 - 1 | DS120: R2, 0 - 1 | DV120: R2, 0 - 1 | DW120: R1, 0.5 - 0.5 | DX120: R6, 0 - 1
CX121: R5, 1 - 0 | CY121: R1, 0.5 - 0.5 | CZ121: R1, 0.5 - 0.5 | DA121: R2, 15 - 13 | DB121: R2, 1 - 0 | DD121: R5, 0.5 - 0.5 | DE121: R1, 0 - 1 | DF121: R1, 0.5 - 0.5 | DH121: R2, 0.5 - 0.5 | DI121: R1, 0 - 1 | DL121: R5, 1 - 0 | DO121: R4, 2 - 19 | DR121: R6, 0 - 1 | DS121: R6, 1 - 0 | DT121: R4, 0 - 1 | DU121: R1, 0.5 - 0.5 | DV121: R3, 0 - 1 | DY121: R2, 0 - 1
CW122: R6, 0.5 - 0.5 | CY122: R1, 1 - 0 | DA122: R4, 0 - 1 | DC122: R3, 0.5 - 0.5 | DE122: R2, 0.5 - 0.5 | DF122: R6, 0 - 1 | DG122: R6, 0.5 - 0.5 | DH122: R1, 0 - 1 | DL122: R4, 0 - 1 | DM122: R2, 0 - 1 | DN122: R1, 1 - 0 | DO122: R2, 0 - 1 | DQ122: R6, 1 - 0 | DT122: R6, 10 - 10
CW123: R2, 0.5 - 0.5 | CX123: R1, 0 - 1 | CZ123: R2, 0 - 1 | DB123: R2, 0 - 1 | DD123: R1, 1 - 0 | DE123: R6, 0 - 1 | DF123: R6, 5 - 22 | DG123: R3, 1 - 0 | DH123: R6, 0.5 - 0.5 | DI123: R3, 0.5 - 0.5 | DL123: R6, 1 - 0 | DM123: R2, 0 - 1 | DN123: R3, 1 - 0 | DO123: R1, 1 - 0 | DP123: R2, 1 - 0 | DQ123: R6, 0 - 1 | DT123: R5, 0 - 1 | DY123: R6, 0.5 - 0.5
CY124: R2, 1 - 0 | CZ124: R1, 1 - 0 | DA124: R1, 0.5 - 0.5 | DB124: R6, 0 - 1 | DC124: R1, 0 - 1 | DD124: R1, 0 - 1 | DE124: R6, 0.5 - 0.5 | DF124: R6, 0 - 1 | DG124: R4, 0 - 1 | DH124: R5, 0 - 1 | DK124: R1, 0.5 - 0.5 | DN124: R2, 0.5 - 0.5 | DO124: R2, 0 - 1 | DQ124: R4, 1 - 0 | DR124: R6, 10 - 10 | DS124: R5, 1 - 0
DA125: R2, 0 - 1 | DB125: R3, 0 - 1 | DC125: R6, 0 - 1 | DD125: R6, 0.5 - 0.5 | DE125: R1, 0 - 1 | DH125: R4, 0.5 - 0.5 | DI125: R5, 0 - 1 | DJ125: R2, 0.5 - 0.5 | DK125: R2, 0 - 1 | DQ125: R1, 0.5 - 0.5
CW126: R1, 0 - 1 | CX126: R2, 0 - 1 | CZ126: R4, 1 - 0 | DB126: R2, 0.5 - 0.5 | DD126: R3, 0.5 - 0.5 | DE126: R1, 1 - 0 | DF126: R1, 0 - 1 | DI126: R6, 0 - 1 | DJ126: R1, 0.5 - 0.5 | DK126: R6, 0 - 1 | DL126: R2, 0 - 1 | DM126: R5, 8 - 22 | DP126: R2, 1 - 0 | DQ126: R3, 1 - 0 | DW126: R6, 0.5 - 0.5
CX127: R1, 0 - 1 | DB127: R6, 0.5 - 0.5 | DD127: R6, 1 - 0 | DF127: R1, 0 - 1 | DG127: R3, 1 - 0 | DH127: R2, 1 - 0 | DI127: R4, 0 - 1 | DJ127: R2, 0 - 1 | DL127: R1, 0 - 1 | DM127: R4, 1 - 0 | DN127: R6, 0.5 - 0.5 | DP127: R1, 0.5 - 0.5 | DV127: R6, 0.5 - 0.5 | DX127: R3, 1 - 0
CW128: R2, 0 - 1 | CZ128: R1, 0.5 - 0.5 | DB128: R6, 0.5 - 0.5 | DC128: R6, 0.5 - 0.5 | DF128: R5, 0.5 - 0.5 | DG128: R2, 0 - 1 | DH128: R3, 1 - 0 | DK128: R2, 0.5 - 0.5 | DN128: R2, 0.5 - 0.5 | DO128: R1, 0 - 1 | DP128: R6, 1 - 0 | DW128: R3, 0 - 1
CY129: R1, 1 - 0 | DB129: R1, 0.5 - 0.5 | DC129: R5, 0 - 1 | DD129: R4, 1 - 0 | DE129: R3, 0.5 - 0.5 | DF129: R2, 1 - 0 | DG129: R6, 1 - 0 | DH129: R6, 0.5 - 0.5 | DI129: R2, 1 - 0 | DJ129: R1, 1 - 0 | DL129: R4, 1 - 0 | DM129: R1, 0 - 1 | DN129: R4, 0 - 1 | DQ129: R2, 1 - 0 | DS129: R6, 0.5 - 0.5

Sheet Round1

Sheet Round2

Sheet Round3

Sheet Round4

Sheet Round5

Sheet Round6

Sheet Round7

Sheet Round8

Sheet Round9

Sheet NAF
A1: <?xml version="1.0" encoding="UTF-8"?>
A2: <nafReport xmlns:blo="http://www.bloodbowl.net">
A3: <organiser>Mike</organiser>
A4: <coaches>
A5: <coach>
A6: <name>Alex</name>
A7: <number>16761</number>
A8: <team>Skaven</team>
A9: </coach>
A10: <coach>
A11: <name>Mike</name>
A12: <number>10468</number>
A13: <team>Elves</team>
A14: </coach>
A15: <coach>
A16: <name>Linus</name>
A17: <number>15676</number>
A18: <team>Dwarves</team>
A19: </coach>
A20: <coach>
A21: <name>Player4</name>
A22: <number>9106</number>
A23: <team>Wood Elves</team>
A24: </coach>
A25: <coach>
A26: <name>Player5</name>
A27: <number>12789</number>
A28: <team>Dark Elves</team>
A29: </coach>
A30: <coach>
A31: <name>Player6</name>
A32: <number>18136</number>
A33: <team>Wood Elves</team>
A34: </coach>
A35: <coach>
A36: <name>Player7</name>
A37: <number>9672</number>
A38: <team>Wood Elves</team>
A39: </coach>
A40: <coach>
A41: <name>Player8</name>
A42: <number>4118</number>
A43: <team>Chaos Dwarves</team>
A44: </coach>
A45: <coach>
A46: <name>Player9</name>
A47: <number>14129</number>
A48: <team>Nurgle's Rotters</team>
A49: </coach>
A50: <coach>
A51: <name>Player10</name>
A52: <number>1739</number>
A53: <team>Lizardmen</team>
A54: </coach>
A55: <coach>
A56: <name>Player11</name>
A57: <number>19602</number>
A58: <team>Slann</team>
A59: </coach>
A60: <coach>
A61: <name>Player12</name>
A62: <number>15064</number>
A63: <team>Wood Elves</team>
A64: </coach>
A65: <coach>
A66: <name>Player13</name>
A67: <number>6092</number>
A68: <team>Amazons</team>
A69: </coach>
A70: <coach>
A71: <name>Player14</name>
A72: <number>9080</number>
A73: <team>Dwarves</team>
A74: </coach>
A75: <coach>
A76: <name>Player15</name>
A77: <number>7960</number>
A78: <team>Undead</team>
A79: </coach>
A80: <coach>
A81: <name>Player16</name>
A82: <number>15062</number>
A83: <team>Goblins</team>
A84: </coach>
A85: <coach>
A86: <name>Player17</name>
A87: <number>7106</number>
A88: <team>Wood Elves</team>
A89: </coach>
A90: <coach>
A91: <name>Player18</name>
A92: <number>7371</number>
A93: <team>Khemri</team>
A94: </coach>
A95: </coaches>
A96: <game>
A97: <timestamp>2016-09-18 01:00</timestamp>
A98: <playerRecord>
A99: <name>Player7</name>
A100: <number>9672</number>
A101: <teamRating>100</teamRating>
A102: <touchDowns>12</touchDowns>
A103: <badlyHurt>2</badlyHurt>
A104: </playerRecord>
A105: <playerRecord>
A106: <name>Player9</name>
A107: <number>14129</number>
A108: <teamRating>100</teamRating>
A109: <touchDowns>7</touchDowns>
A110: <badlyHurt>1</badlyHurt>
A111: </playerRecord>
A112: </game>
A113: <game>
A114: <timestamp>2016-09-18 01:00</timestamp>
A115: <playerRecord>
A116: <name>Player6</name>
A117: <number>18136</number>
A118: <teamRating>100</teamRating>
A119: <touchDowns>12</touchDowns>
A120: <badlyHurt>2</badlyHurt>
A121: </playerRecord>
A122: <playerRecord>
A123: <name>Player11</name>
A124: <number>19602</number>
A125: <teamRating>100</teamRating>
A126: <touchDowns>12</touchDowns>
A127: <badlyHurt>2</badlyHurt>
A128: </playerRecord>
A129: </game>
A130: <game>
A131: <timestamp>2016-09-18 01:00</timestamp>
A132: <playerRecord>
A133: <name>Player17</name>
A134: <number>7106</number>
A135: <teamRating>100</teamRating>
A136: <touchDowns>10</touchDowns>
A137: <badlyHurt>2</badlyHurt>
A138: </playerRecord>
A139: <playerRecord>
A140: <name>Player13</name>
A141: <number>6092</number>
A142: <teamRating>100</teamRating>
A143: <touchDowns>8</touchDowns>
A144: <badlyHurt>2</badlyHurt>
A145: </playerRecord>
A146: </game>
A147: <game>
A148: <timestamp>2016-09-18 01:00</timestamp>
A149: <playerRecord>
A150: <name>Player8</name>
A151: <number>4118</number>
A152: <teamRating>100</teamRating>
A153: <touchDowns>3</touchDowns>
A154: <badlyHurt>1</badlyHurt>
A155: </playerRecord>
A156: <playerRecord>
A157: <name>Linus</name>
A158: <number>15676</number>
A159: <teamRating>100</teamRating>
A160: <touchDowns>16</touchDowns>
A161: <badlyHurt>3</badlyHurt>
A162: </playerRecord>
A163: </game>
A164: <game>
A165: <timestamp>2016-09-18 01:00</timestamp>
A166: <playerRecord>
A167: <name>Player14</name>
A168: <number>9080</number>
A169: <teamRating>100</teamRating>
A170: <touchDowns>9</touchDowns>
A171: <badlyHurt>1</badlyHurt>
A172: </playerRecord>
A173: <playerRecord>
A174: <name>Player10</name>
A175: <number>1739</number>
A176: <teamRating>100</teamRating>
A177: <touchDowns>11</touchDowns>
A178: <badlyHurt>2</badlyHurt>
A179: </playerRecord>
A180: </game>
A181: <game>
A182: <timestamp>2016-09-18 01:00</timestamp>
A183: <playerRecord>
A184: <name>Mike</name>
A185: <number>10468</number>
A186: <teamRating>100</teamRating>
A187: <touchDowns>4</touchDowns>
A188: <badlyHurt>0</badlyHurt>
A189: </playerRecord>
A190: <playerRecord>
A191: <name>Player5</name>
A192: <number>12789</number>
A193: <teamRating>100</teamRating>
A194: <touchDowns>17</touchDowns>
A195: <badlyHurt>2</badlyHurt>
A196: </playerRecord>
A197: </game>
A198: <game>
A199: <timestamp>2016-09-18 01:00</timestamp>
A200: <playerRecord>
... 661 more rows

Sheet Working
Z1: Latest Rd: | AA1: 6
Z2: Players: | AA2: =COUNTA(Players!B:B)-1 -> 128 | AE2: Max Score | AF2: =Setup!B19*TeamSize*Setup!B19+Setup!B19 -> 9
Z3: Display | AA3: 14 | AB3: Columns
Z4: Enter | AA4: 7 | AB4: Columns
Z5: Max random | AA5: 3
Z6: Number of Groups | AA6: =COUNTA(Players!M:M)-1 -> 16 | AE6: Group
AE7: Individual
Z8: Group display | AA8: 18 | AB8: columns
AC10: Cumulative
AA11: Amazons | AG11: Entry Data
AA12: Chaos | AE12: Initial Display Columns | AG12: Player
AA13: Chaos Dwarves | AE13: Player | AG13: Points
AA14: Chaos Pact | AE14: Points | AG14: TD
AA15: Dark Elves | AE15: TD For | AG15: Cas
AA16: Dwarves | AE16: Cas For | AG16: =Setup!E3 -> Bonus1 | AH16: Bonus1 Name
AA17: Elves | AE17: =Working!AG16 -> Bonus1 | AG17: =Setup!E4 -> Bonus2 | AH17: Bonus2 Name
AA18: Goblins | AE18: =Working!AG17 -> Bonus2 | AG18: Group
AA19: Halflings | AE19: TD Against
AA20: High Elves | AE20: Cas Against
AA21: Humans | AE21: TD Net
AA22: Khemri | AE22: Cas Net
AA23: Lizardmen | AE23: Wins
AA24: Necromantic | AE24: Draws
AA25: Norse | AE25: Losses
AA26: Nurgle's Rotters | AE26: Opp Score
AA27: Ogres | AE27: Group
AA28: Orc
AA29: Skaven
AA30: Slann
AA31: Undead
AA32: Underworld
AA33: Vampires
AA34: Wood Elves

Sheet ChangeLog
B1: This spreadsheet is based on one by Kaper on an Excel forum: http://www.excelforum.com/excel-programming-vba-macros/1105569-swiss-pairing-algorithm-in-excel-to-organize-a-chess-tournament.html
B2: Massive thanks due to him!
B3: The original was used for Chess, and it has been adapted to work for Blood Bowl by sann0638 (Mike Davies)
A5: Version | B5: Summary | C5: Date | D5: Notes
A6: 1.0 | B6: Multi-sheet version of the chess | C6: 2016-06-19
A7: 1.1 | B7: Remove Black and White stuff | C7: 2016-06-19
A8: 1.2 | B8: Change to TDs to generate points | C8: 2016-06-19
B9: Got the Swiss working properly | C9: 2016-06-19 | D9: Published.
A10: 1.3 | B10: More help information. | C10: 2016-06-20
B11: Added Table | C11: 2016-06-20
B12: Added Opponent Score | C12: 2016-06-20
A13: 2.1 | B13: Big overhaul to where info stored | C13: 2016-06-21
A14: 2.2 | B14: Putting in the Score formula | C14: 2016-06-21 | D14: Published.
A15: 3.1 | B15: Added all tiebreaker columns | C15: 2016-06-22
B16: Realised opponent score was wrong, fixed it. | C16: 2016-06-22
A17: 3.2 | B17: Fixed problem with sorting the table. | C17: 2016-06-23 | D17: Published.
A18: 3.3 | B18: Tiebreakers implemented | C18: 2016-06-24
B19: NAF Upload file | C19: 2016-06-24 | D19: Published.
A20: 4.1 | B20: Group results and matrix added | C20: 2016-06-25
B21: Group results fully implemented | C21: 2016-06-26
A22: 4.2 | B22: Fixed net casualties | C22: 2016-06-28
A23: 4.3 | B23: Tiebreakers corrected, yet again! | C23: 2016-09-17 | D23: Published.
A24: 4.4 | B24: Group results corrected, groups added to table | C24: 2016-09-17
B25: Removed need for Groups to be in there, corrected number of players. | C25: 2016-09-18 | D25: Published.
A26: 5.0 | B26: Mostly working Group Swiss | C26: 2016-09-21
A27: 5.1 | B27: Working Group Swiss. | C27: 2016-09-21 | D27: Published.
A28: 5.2 | B28: Fixed problem with more than 100 coaches. | C28: 2016-09-25
B29: Tidied up tabs. | C29: 2016-09-25 | D29: Published.
